{"text_format":"1","workbook":"xlsx","n_sheets":6,"sheets":["リスニング","リスニング検索","単語","単語検索","アルファベット","フォニックス"],"not_rendered":{"charts":0,"images":0,"macros":1,"external_links":0,"defined_names":9,"comments":0,"pivot_tables":0},"unopened":[],"bounds":{"document_bytes":16777216,"sheet_cells":100000,"rows_first":2000,"rows_last":500,"rows_between":2000,"halvings":0,"cell_chars":16384,"cell_head_chars":4096},"cells_cut":0,"cells_raw":0,"read":"whole","date_system":"1900"}

{"sheet":"リスニング","index":0,"n_rows":146,"n_cols":9,"rows_kept":146,"cut":false,"hidden":false,"merged":[]}
["Level","Step","Lesson","テーマ","キーフレーズ例","KW1","KW2","KW3","検索用"]
[1,1,1,"あいさつ／きもちのやりとり１","Hello. Good morning. Good night. I'm___. How are you?  I'm ___.",1,null,null," "]
[1,1,2,"あいさつ／きもちのやりとり２","How are you? I'm___. Hello. Good-bye. Are you___?　I'm ___. ",1,null,null,{"$f":"IF(OR(F3=Lテーマ番号,G3=Lテーマ番号,H3=Lテーマ番号),\"○\",\"\")","v":""}]
[1,1,3,"あいさつ／きもちのやりとり３","How are you? I'm___. Are you ___? I'm___. Good-bye. ",1,null,null,{"$f":"IF(OR(F4=Lテーマ番号,G4=Lテーマ番号,H4=Lテーマ番号),\"○\",\"\")","v":""}]
[1,2,1,"ほしい ものに ついての やりとり１","___ , please. I want___. What do you want?",7,null,null,{"$f":"IF(OR(F5=Lテーマ番号,G5=Lテーマ番号,H5=Lテーマ番号),\"○\",\"\")","v":""}]
[1,2,2,"ほしい ものに ついての やりとり２","___ , please. I want ___. How many ___？",7,null,null,{"$f":"IF(OR(F6=Lテーマ番号,G6=Lテーマ番号,H6=Lテーマ番号),\"○\",\"\")","v":""}]
[1,2,3,"ほしい ものに ついての やりとり３","___ , please. I want ___. How many ___?　Do you want ___？",7,null,null,{"$f":"IF(OR(F7=Lテーマ番号,G7=Lテーマ番号,H7=Lテーマ番号),\"○\",\"\")","v":""}]
[1,3,1,"あいさつ／じぶんのことに ついての やりとり１","What's your name? I'm___. How old are you? I'm ___ years old.",1,null,null,{"$f":"IF(OR(F8=Lテーマ番号,G8=Lテーマ番号,H8=Lテーマ番号),\"○\",\"\")","v":""}]
[1,3,2,"あいさつ／じぶんのことに ついての やりとり２","How are you? I'm___. How old are you? I'm ___ years old.",1,null,null,{"$f":"IF(OR(F9=Lテーマ番号,G9=Lテーマ番号,H9=Lテーマ番号),\"○\",\"\")","v":""}]
[1,3,3,"あいさつ／じぶんのことに ついての やりとり３","How are you? I'm ____, thank you. What's your name? I'm ___. How old are you? I'm ___ years old.",1,null,null,{"$f":"IF(OR(F10=Lテーマ番号,G10=Lテーマ番号,H10=Lテーマ番号),\"○\",\"\")","v":""}]
[1,4,1,"もちもの・あるものに ついての やりとり１","Do you have ___？Yes, I do. No, I don't. ___ , please.",3,null,null,{"$f":"IF(OR(F11=Lテーマ番号,G11=Lテーマ番号,H11=Lテーマ番号),\"○\",\"\")","v":""}]
[1,4,2,"もちもの・あるものに ついての やりとり２","Do you have ___？Yes, I do. No, I don't. ___ , please.",3,null,null,{"$f":"IF(OR(F12=Lテーマ番号,G12=Lテーマ番号,H12=Lテーマ番号),\"○\",\"\")","v":""}]
[1,4,3,"もちもの・あるものに ついての やりとり３","Do you have ___？Yes, I do. No, I don't. ___ , please.",3,null,null,{"$f":"IF(OR(F13=Lテーマ番号,G13=Lテーマ番号,H13=Lテーマ番号),\"○\",\"\")","v":""}]
[1,5,1,"なまえや ねんれいを きく やりとり","What's your name? My name is ___ . How old are you? I'm ___ years old. ",1,null,null,{"$f":"IF(OR(F14=Lテーマ番号,G14=Lテーマ番号,H14=Lテーマ番号),\"○\",\"\")","v":""}]
[1,5,2,"すきなものを つたえる ひょうげん１","Do you like ___? Yes, I do. No, I don't. What do you like? I like ___ . What ___ do you like?",2,null,null,{"$f":"IF(OR(F15=Lテーマ番号,G15=Lテーマ番号,H15=Lテーマ番号),\"○\",\"\")","v":""}]
[1,5,3,"すきなものを つたえる ひょうげん２","I like ___. I don' t like ___. What ___ do you like? Which do you like, ___ or ___?",2,null,null,{"$f":"IF(OR(F16=Lテーマ番号,G16=Lテーマ番号,H16=Lテーマ番号),\"○\",\"\")","v":""}]
[1,6,1,"あいさつ， しょうかいを する ひょうげん","Nice to meet you. I'm ___. How old are you? I'm ___ years old. ",1,null,null,{"$f":"IF(OR(F17=Lテーマ番号,G17=Lテーマ番号,H17=Lテーマ番号),\"○\",\"\")","v":""}]
[1,6,2,"すきなことや ほしいものに ついての やりとり","What do you like? I like___. Do you like___? Yes, I do. No, I don't. Do you have ___? ",7,null,null,{"$f":"IF(OR(F18=Lテーマ番号,G18=Lテーマ番号,H18=Lテーマ番号),\"○\",\"\")","v":""}]
[1,6,3,"きもちを つたえる ときの ひょうげん","Are you ___? I'm ___. Do you want ___? Yes, I do. No, thank you. What do you want? I want ____.",5,null,null,{"$f":"IF(OR(F19=Lテーマ番号,G19=Lテーマ番号,H19=Lテーマ番号),\"○\",\"\")","v":""}]
[1,7,1,"すきなものに　ついての　やりとり","Do you like ___? Yes, I do. No, I don't. I like ___ . I don't like ___.",2,null,null,{"$f":"IF(OR(F20=Lテーマ番号,G20=Lテーマ番号,H20=Lテーマ番号),\"○\",\"\")","v":""}]
[1,7,2,"できることについての　やりとり","Can you ___? Yes, I can. No, I can't.",4,null,null,{"$f":"IF(OR(F21=Lテーマ番号,G21=Lテーマ番号,H21=Lテーマ番号),\"○\",\"\")","v":""}]
[1,7,3,"すきなものに　ついての　やりとり","What ___ do you like? I like ___. Do you like ___? Yes, I do. No, I don't. How about ___?",2,null,null,{"$f":"IF(OR(F22=Lテーマ番号,G22=Lテーマ番号,H22=Lテーマ番号),\"○\",\"\")","v":""}]
[1,8,1,"もちもの・あるものに ついての やりとり","Do you have ___？Yes, I do. No, I don't.  I have ___.",3,null,null,{"$f":"IF(OR(F23=Lテーマ番号,G23=Lテーマ番号,H23=Lテーマ番号),\"○\",\"\")","v":""}]
[1,8,2,"ほしいもの，　かずに　ついての　やりとり","What do you want for ___?  ___, please. How many ___? What ___ do you want?",7,9,null,{"$f":"IF(OR(F24=Lテーマ番号,G24=Lテーマ番号,H24=Lテーマ番号),\"○\",\"\")","v":""}]
[1,8,3,"することなどに　ついての　やりとり","Do you ___? Yes, I do. No, I don't.",19,null,null,{"$f":"IF(OR(F25=Lテーマ番号,G25=Lテーマ番号,H25=Lテーマ番号),\"○\",\"\")","v":""}]
[1,9,1,"すきなものに　ついての　やりとり","Which do you like, ___ or ___? I like ____.",2,null,null,{"$f":"IF(OR(F26=Lテーマ番号,G26=Lテーマ番号,H26=Lテーマ番号),\"○\",\"\")","v":""}]
[1,9,2,"きもちを　きく　ひょうげん","Are you ___?  Yes, I am. No, I'm not. I'm ____.",5,null,null,{"$f":"IF(OR(F27=Lテーマ番号,G27=Lテーマ番号,H27=Lテーマ番号),\"○\",\"\")","v":""}]
[1,9,3,"すきなものに　ついての　やりとり","Which do you like, ___ or ___? I like ____.",2,null,null,{"$f":"IF(OR(F28=Lテーマ番号,G28=Lテーマ番号,H28=Lテーマ番号),\"○\",\"\")","v":""}]
[1,10,1,"がっこうの　じゅぎょうでの　かいわ","Sit down, please. Let's ____. Open your textbooks.",6,null,null,{"$f":"IF(OR(F29=Lテーマ番号,G29=Lテーマ番号,H29=Lテーマ番号),\"○\",\"\")","v":""}]
[1,10,2,"ほしいものについて　つたえる","I want ____. What do you want for your birthday? What kind of _____ do you want? ____, please. ",7,null,null,{"$f":"IF(OR(F30=Lテーマ番号,G30=Lテーマ番号,H30=Lテーマ番号),\"○\",\"\")","v":""}]
[1,10,3,"おねがいするときの　ひょうげん","Can you help me? Pass me____. Open ____. Cut ____. ",18,null,null,{"$f":"IF(OR(F31=Lテーマ番号,G31=Lテーマ番号,H31=Lテーマ番号),\"○\",\"\")","v":""}]
[1,11,1,"あいてを　さそう　ひょうげん","Let's ___. Sure.",18,null,null,{"$f":"IF(OR(F32=Lテーマ番号,G32=Lテーマ番号,H32=Lテーマ番号),\"○\",\"\")","v":""}]
[1,11,2,"なにかを　たずねる　ひょうげん","What's this? It's ___. What are these? They are ___.",14,null,null,{"$f":"IF(OR(F33=Lテーマ番号,G33=Lテーマ番号,H33=Lテーマ番号),\"○\",\"\")","v":""}]
[1,11,3,"あいてを　さそう　ひょうげん","Let's ___. Sure.",18,null,null,{"$f":"IF(OR(F34=Lテーマ番号,G34=Lテーマ番号,H34=Lテーマ番号),\"○\",\"\")","v":""}]
[1,12,1,"きもちを　きく， ほしいものを つたえる ひょうげん","Are you ___? Yes, I am. No, I'm not. I'm___. I want ____. Which do you want, ___ or ___? Do you want ___?",5,7,null,{"$f":"IF(OR(F35=Lテーマ番号,G35=Lテーマ番号,H35=Lテーマ番号),\"○\",\"\")","v":""}]
[1,12,2,"すきなもの， ほしいもの， かずについての やりとり","Do you like ____? Yes, I do. No, I don't. Do you want ___? I want ____. How many ____ do you have? I have ___. ",2,7,9,{"$f":"IF(OR(F36=Lテーマ番号,G36=Lテーマ番号,H36=Lテーマ番号),\"○\",\"\")","v":""}]
[1,12,3,"がっこうでの　やりとり","Let's___. Open your textbooks. Sit down, please. Stand up! Are you ready? ",6,null,null,{"$f":"IF(OR(F37=Lテーマ番号,G37=Lテーマ番号,H37=Lテーマ番号),\"○\",\"\")","v":""}]
[2,1,1,"きもちを つたえる ひょうげん１","Are you ready? I'm ready. I'm sorry.",5,null,null,{"$f":"IF(OR(F38=Lテーマ番号,G38=Lテーマ番号,H38=Lテーマ番号),\"○\",\"\")","v":""}]
[2,1,2,"きもちを つたえる ひょうげん２","How are you? Are you OK? Are you ____? I'm ____.",5,null,null,{"$f":"IF(OR(F39=Lテーマ番号,G39=Lテーマ番号,H39=Lテーマ番号),\"○\",\"\")","v":""}]
[2,1,3,"きもちを つたえる ひょうげん３","I'm _____. I'm ready. ",5,null,null,{"$f":"IF(OR(F40=Lテーマ番号,G40=Lテーマ番号,H40=Lテーマ番号),\"○\",\"\")","v":""}]
[2,2,1,"もっているものに ついての やりとり１","Do you have ____? Yes, I do. No, I don't. I have ____. What do you have in ____?",3,null,null,{"$f":"IF(OR(F41=Lテーマ番号,G41=Lテーマ番号,H41=Lテーマ番号),\"○\",\"\")","v":""}]
[2,2,2,"もっているものに ついての やりとり２","What do you have in ___? Do you have____? Yes, I do. No, I don't. I have ___.",3,null,null,{"$f":"IF(OR(F42=Lテーマ番号,G42=Lテーマ番号,H42=Lテーマ番号),\"○\",\"\")","v":""}]
[2,2,3,"もっているものに ついての やりとり３","Do you have ____? Yes, I do. No, I don't. I have ____. What do you have in ____?",3,null,null,{"$f":"IF(OR(F43=Lテーマ番号,G43=Lテーマ番号,H43=Lテーマ番号),\"○\",\"\")","v":""}]
[2,3,1,"できることに ついての やりとり１","Can you ___? Yes, I can. No, I can't. I can ___. I can't ___.",4,null,null,{"$f":"IF(OR(F44=Lテーマ番号,G44=Lテーマ番号,H44=Lテーマ番号),\"○\",\"\")","v":""}]
[2,3,2,"できることに ついての やりとり２","Can you ___? Yes, I can. No, I can't. I can ___. I can't ___.",4,null,null,{"$f":"IF(OR(F45=Lテーマ番号,G45=Lテーマ番号,H45=Lテーマ番号),\"○\",\"\")","v":""}]
[2,3,3,"できることに ついての やりとり３","Can you ___? Yes, I can. No, I can't. I can ___. I can't ___.",4,null,null,{"$f":"IF(OR(F46=Lテーマ番号,G46=Lテーマ番号,H46=Lテーマ番号),\"○\",\"\")","v":""}]
[2,4,1,"すきなことを つたえる ひょうげん","Do you like ___? Yes, I do. No, I don't. I like ___ .",2,null,null,{"$f":"IF(OR(F47=Lテーマ番号,G47=Lテーマ番号,H47=Lテーマ番号),\"○\",\"\")","v":""}]
[2,4,2,"もちもの・あるものに ついての ききとり","Do you have ___? Yes, I do. No, I don't. We have ____. ",3,null,null,{"$f":"IF(OR(F48=Lテーマ番号,G48=Lテーマ番号,H48=Lテーマ番号),\"○\",\"\")","v":""}]
[2,4,3,"さそうときの ひょうげん","Let's ___. How about ___?",18,null,null,{"$f":"IF(OR(F49=Lテーマ番号,G49=Lテーマ番号,H49=Lテーマ番号),\"○\",\"\")","v":""}]
[2,5,1,"すきなものを つたえる ひょうげん１","Do you like ___? Yes, I do. No, I don't. Which do you like, ___ or ___? I like ___. I don't like ___.",2,null,null,{"$f":"IF(OR(F50=Lテーマ番号,G50=Lテーマ番号,H50=Lテーマ番号),\"○\",\"\")","v":""}]
[2,5,2,"すきなものを つたえる ひょうげん２","Do you like ___? Yes, I do. No, I don't. What ____ do you like? I like ___.",2,null,null,{"$f":"IF(OR(F51=Lテーマ番号,G51=Lテーマ番号,H51=Lテーマ番号),\"○\",\"\")","v":""}]
[2,5,3,"すきなものを つたえる ひょうげん３","Do you like ___? Yes, I do. No, I don't.  I like ___. I don't like ___.",2,null,null,{"$f":"IF(OR(F52=Lテーマ番号,G52=Lテーマ番号,H52=Lテーマ番号),\"○\",\"\")","v":""}]
[2,6,1,"すきなものを たずねる ひょうげん","What ___ do you like? I like ___. Do you like ___? Yes, I do. No, I don't. How about ___?",2,null,null,{"$f":"IF(OR(F53=Lテーマ番号,G53=Lテーマ番号,H53=Lテーマ番号),\"○\",\"\")","v":""}]
[2,6,2,"もちものを たずねる ひょうげん","Do you have ____? Yes, I do. No, I don't. I have ____. What do you have in ____?",3,null,null,{"$f":"IF(OR(F54=Lテーマ番号,G54=Lテーマ番号,H54=Lテーマ番号),\"○\",\"\")","v":""}]
[2,6,3,"できることを たずねる ひょうげん","Can you ___? Yes, I can. No, I can't. I can ___. I can't ___.",4,null,null,{"$f":"IF(OR(F55=Lテーマ番号,G55=Lテーマ番号,H55=Lテーマ番号),\"○\",\"\")","v":""}]
[2,7,1,"おねがいするときの　ひょうげん","Can you ___? Sure.",18,null,null,{"$f":"IF(OR(F56=Lテーマ番号,G56=Lテーマ番号,H56=Lテーマ番号),\"○\",\"\")","v":""}]
[2,7,2,"もちものに　ついての　やりとり","Do you have ___? Yes, I do. No, I don't. I have ____. I don't have ____.",3,null,null,{"$f":"IF(OR(F57=Lテーマ番号,G57=Lテーマ番号,H57=Lテーマ番号),\"○\",\"\")","v":""}]
[2,7,3,"おねがいするときの　ひょうげん","Can you ___? Sure. I'm sorry, I can't. I can ___.",18,null,null,{"$f":"IF(OR(F58=Lテーマ番号,G58=Lテーマ番号,H58=Lテーマ番号),\"○\",\"\")","v":""}]
[2,8,1,"ひづけを　つたえるときの　ひょうげん","What's the date today? It's ___.",11,null,null,{"$f":"IF(OR(F59=Lテーマ番号,G59=Lテーマ番号,H59=Lテーマ番号),\"○\",\"\")","v":""}]
[2,8,2,"かずを　つたえるときの　ひょうげん","How many ____? There are ___.",9,null,null,{"$f":"IF(OR(F60=Lテーマ番号,G60=Lテーマ番号,H60=Lテーマ番号),\"○\",\"\")","v":""}]
[2,8,3,"ようびを　つたえるときの　ひょうげん","What day is it today? It's __.",11,null,null,{"$f":"IF(OR(F61=Lテーマ番号,G61=Lテーマ番号,H61=Lテーマ番号),\"○\",\"\")","v":""}]
[2,9,1,"みんなの　じこしょうかい","My name is _____. I'm ____ years old. I like____. I can _____.",1,null,null,{"$f":"IF(OR(F62=Lテーマ番号,G62=Lテーマ番号,H62=Lテーマ番号),\"○\",\"\")","v":""}]
[2,9,2,"ばしょに　ついての　やりとり","Where do you live? I live in ____ . Where do you want to go? Where will you go?",10,null,null,{"$f":"IF(OR(F63=Lテーマ番号,G63=Lテーマ番号,H63=Lテーマ番号),\"○\",\"\")","v":""}]
[2,9,3,"しつもんをするときの　やりとり","Are you ___? Yes, I am. No, I'm not. Can I ____? Sure.",20,null,null,{"$f":"IF(OR(F64=Lテーマ番号,G64=Lテーマ番号,H64=Lテーマ番号),\"○\",\"\")","v":""}]
[2,10,1,"じかんについての　やりとり","What time is it now? It's ___.",12,null,null,{"$f":"IF(OR(F65=Lテーマ番号,G65=Lテーマ番号,H65=Lテーマ番号),\"○\",\"\")","v":""}]
[2,10,2,"てんきに　ついての　やりとり","How is the weather? It's ___.",13,null,null,{"$f":"IF(OR(F66=Lテーマ番号,G66=Lテーマ番号,H66=Lテーマ番号),\"○\",\"\")","v":""}]
[2,10,3,"じかんに　ついての　やりとり","What time does it ___? It ___ at ___. How long does it take ___? It takes ___.",12,null,null,{"$f":"IF(OR(F67=Lテーマ番号,G67=Lテーマ番号,H67=Lテーマ番号),\"○\",\"\")","v":""}]
[2,11,1,"せつめいをする　ひょうげん","What's that? It's ___. What are these? They are ____.",14,null,null,{"$f":"IF(OR(F68=Lテーマ番号,G68=Lテーマ番号,H68=Lテーマ番号),\"○\",\"\")","v":""}]
[2,11,2,"かずを　つたえるときの　ひょうげん","How many____? There are ___.",9,null,null,{"$f":"IF(OR(F69=Lテーマ番号,G69=Lテーマ番号,H69=Lテーマ番号),\"○\",\"\")","v":""}]
[2,11,3,"せつめいをする　ひょうげん","What's that? It's ___. This is___.  There is ___. There are ___.",14,null,null,{"$f":"IF(OR(F70=Lテーマ番号,G70=Lテーマ番号,H70=Lテーマ番号),\"○\",\"\")","v":""}]
[2,12,1,"できること， もっている　ものに　ついての ひょうげん","Can you ___? Yes, I can. No, I can't. Do you have ___? Yes, I do. No, I don't.",4,3,null,{"$f":"IF(OR(F71=Lテーマ番号,G71=Lテーマ番号,H71=Lテーマ番号),\"○\",\"\")","v":""}]
[2,12,2,"おねがいをする， ひづけ・ようびを つたえる ひょうげん","Can you ___? Sure. What's the date today? It's ___. What day is it today? It's __. ",18,11,null,{"$f":"IF(OR(F72=Lテーマ番号,G72=Lテーマ番号,H72=Lテーマ番号),\"○\",\"\")","v":""}]
[2,12,3,"ばしょ， じかん， てんきに　ついての　やりとり","Where do you want to go? I want to go to ___. Where do you live? I live in ___. What time is it? It's ___. How's the weather? It's ___.",10,12,13,{"$f":"IF(OR(F73=Lテーマ番号,G73=Lテーマ番号,H73=Lテーマ番号),\"○\",\"\")","v":""}]
[3,1,1,"しつもん　するときの　ひょうげん１","How old are you? Is that ___? What's your name? What's ___?",20,null,null,{"$f":"IF(OR(F74=Lテーマ番号,G74=Lテーマ番号,H74=Lテーマ番号),\"○\",\"\")","v":""}]
[3,1,2,"しつもん　するときの　ひょうげん２","How old are you? Which ___? What's ___? Do you like __? What ___ do you like?",20,null,null,{"$f":"IF(OR(F75=Lテーマ番号,G75=Lテーマ番号,H75=Lテーマ番号),\"○\",\"\")","v":""}]
[3,1,3,"しつもん　するときの　ひょうげん３","What ___ do you like?  Do you like ___? ",20,null,null,{"$f":"IF(OR(F76=Lテーマ番号,G76=Lテーマ番号,H76=Lテーマ番号),\"○\",\"\")","v":""}]
[3,2,1,"もっているものに　ついての　やりとり１","What do you have___? I have ___. Do you have ___? Yes, I do. No, I don't. ",3,null,null,{"$f":"IF(OR(F77=Lテーマ番号,G77=Lテーマ番号,H77=Lテーマ番号),\"○\",\"\")","v":""}]
[3,2,2,"もっているものに　ついての　やりとり２","Do you have ___? Yes, I do. No, I don't. What do you have ___?",3,null,null,{"$f":"IF(OR(F78=Lテーマ番号,G78=Lテーマ番号,H78=Lテーマ番号),\"○\",\"\")","v":""}]
[3,2,3,"もっているものに　ついての　やりとり３","Do you have ___? Yes, I do. No, I don't.",3,null,null,{"$f":"IF(OR(F79=Lテーマ番号,G79=Lテーマ番号,H79=Lテーマ番号),\"○\",\"\")","v":""}]
[3,3,1,"できること・することに　ついての　ききとり１","Can you ___? Yes, I can. No, I can't. I can ___. I can't ___. ",4,19,null,{"$f":"IF(OR(F80=Lテーマ番号,G80=Lテーマ番号,H80=Lテーマ番号),\"○\",\"\")","v":""}]
[3,3,2,"できること・することに　ついての　ききとり２","Do you play ___? Yes, I do. No, I don't. Can you play ___? Yes, I can. No, I can't.",4,19,null,{"$f":"IF(OR(F81=Lテーマ番号,G81=Lテーマ番号,H81=Lテーマ番号),\"○\",\"\")","v":""}]
[3,3,3,"できること・することに　ついての　ききとり３","Do you play ___? Yes, I do. No, I don't. Can you play ___? Yes, I can. No, I can't.",4,19,null,{"$f":"IF(OR(F82=Lテーマ番号,G82=Lテーマ番号,H82=Lテーマ番号),\"○\",\"\")","v":""}]
[3,4,1,"している　ことを　つたえる　ひょうげん１","What are you doing? I'm ___ing.",16,null,null,{"$f":"IF(OR(F83=Lテーマ番号,G83=Lテーマ番号,H83=Lテーマ番号),\"○\",\"\")","v":""}]
[3,4,2,"している　ことを　つたえる　ひょうげん２","What are you doing? I'm ___ing.",16,null,null,{"$f":"IF(OR(F84=Lテーマ番号,G84=Lテーマ番号,H84=Lテーマ番号),\"○\",\"\")","v":""}]
[3,4,3,"している　ことを　つたえる　ひょうげん３","What are you doing? I'm ___ing. Are you ___ing? Yes, I am No, I'm not. ",16,null,null,{"$f":"IF(OR(F85=Lテーマ番号,G85=Lテーマ番号,H85=Lテーマ番号),\"○\",\"\")","v":""}]
[3,5,1,"すきな　りゆうを　つたえる　ひょうげん","Why do you like ___? Because ___.",2,null,null,{"$f":"IF(OR(F86=Lテーマ番号,G86=Lテーマ番号,H86=Lテーマ番号),\"○\",\"\")","v":""}]
[3,5,2,"できるか　きくときの　ひょうげん","Can you___? Yes, I can. No, I can't.",4,null,null,{"$f":"IF(OR(F87=Lテーマ番号,G87=Lテーマ番号,H87=Lテーマ番号),\"○\",\"\")","v":""}]
[3,5,3,"きょかを　もとめる　ときの　ひょうげん","Can I ___?  OK.",18,null,null,{"$f":"IF(OR(F88=Lテーマ番号,G88=Lテーマ番号,H88=Lテーマ番号),\"○\",\"\")","v":""}]
[3,6,1,"していること，すきなものを　きく　ひょうげん","Which do you like, ___ or ___? I like ____. Are you ___ing? Yes, I am. No, I'm not. I'm ___ing.",16,2,null,{"$f":"IF(OR(F89=Lテーマ番号,G89=Lテーマ番号,H89=Lテーマ番号),\"○\",\"\")","v":""}]
[3,6,2,"していること，もちものを　きく　ひょうげん","What do you have ____? I have ____. Do you have ___? Yes, I do. No, I don't. Are you ___ing? Yes, I am. No, I'm not.",16,3,null,{"$f":"IF(OR(F90=Lテーマ番号,G90=Lテーマ番号,H90=Lテーマ番号),\"○\",\"\")","v":""}]
[3,6,3,"できることを　きく　ひょうげん","Can you___? Yes, I can. No, I can't.",4,null,null,{"$f":"IF(OR(F91=Lテーマ番号,G91=Lテーマ番号,H91=Lテーマ番号),\"○\",\"\")","v":""}]
[3,7,1,"ばしょや　いちに　ついて　きく　ひょうげん１","Where ___? It's (on, in, under) ____. Is it (on, in, under）____? Yes, it is. No, it's not. ",10,null,null,{"$f":"IF(OR(F92=Lテーマ番号,G92=Lテーマ番号,H92=Lテーマ番号),\"○\",\"\")","v":""}]
[3,7,2,"できることに　ついての　やりとり","Can you___? Yes, I can. No, I can't. I can ___.  What can you___?",4,null,null,{"$f":"IF(OR(F93=Lテーマ番号,G93=Lテーマ番号,H93=Lテーマ番号),\"○\",\"\")","v":""}]
[3,7,3,"ばしょや　いちに　ついて　きく　ひょうげん２","Where ___? It's (on, in, under) ____. Is it (on, in, under）____? Yes, it is. No, it's not. ",10,null,null,{"$f":"IF(OR(F94=Lテーマ番号,G94=Lテーマ番号,H94=Lテーマ番号),\"○\",\"\")","v":""}]
[3,8,1,"しょうかいするときの　ひょうげん１","Who ___? He/She is ___. He/She has ___.",15,null,null,{"$f":"IF(OR(F95=Lテーマ番号,G95=Lテーマ番号,H95=Lテーマ番号),\"○\",\"\")","v":""}]
[3,8,2,"いろいろな　しつもんを　するときの　ひょうげん","What ___ do you ___? Do you ___? Is it ___?",20,null,null,{"$f":"IF(OR(F96=Lテーマ番号,G96=Lテーマ番号,H96=Lテーマ番号),\"○\",\"\")","v":""}]
[3,8,3,"しょうかいするときの　ひょうげん２","Who ___? He/She is ___. He/She has ___.",15,null,null,{"$f":"IF(OR(F97=Lテーマ番号,G97=Lテーマ番号,H97=Lテーマ番号),\"○\",\"\")","v":""}]
[3,9,1,"ものの　ようすを　つたえる　ときの　ひょうげん１","What is this? It's___. ",14,null,null,{"$f":"IF(OR(F98=Lテーマ番号,G98=Lテーマ番号,H98=Lテーマ番号),\"○\",\"\")","v":""}]
[3,9,2,"じかんに　ついての　やりとり","What time is it now? It's ___.",12,null,null,{"$f":"IF(OR(F99=Lテーマ番号,G99=Lテーマ番号,H99=Lテーマ番号),\"○\",\"\")","v":""}]
[3,9,3,"ものの　ようすを　つたえる　ときの　ひょうげん２","This is ____. It's ____.",14,null,null,{"$f":"IF(OR(F100=Lテーマ番号,G100=Lテーマ番号,H100=Lテーマ番号),\"○\",\"\")","v":""}]
[3,10,1,"かいものの　やりとり１","____, please. I'd like ___. How much is it? It's____.",8,null,null,{"$f":"IF(OR(F101=Lテーマ番号,G101=Lテーマ番号,H101=Lテーマ番号),\"○\",\"\")","v":""}]
[3,10,2,"てんきに　ついての　やりとり","How's the weather? It's ____.",13,null,null,{"$f":"IF(OR(F102=Lテーマ番号,G102=Lテーマ番号,H102=Lテーマ番号),\"○\",\"\")","v":""}]
[3,10,3,"かいものの　やりとり２","Do you have ___? ____, please. How many do you want? What ____ do you want?        I want ___.",8,null,null,{"$f":"IF(OR(F103=Lテーマ番号,G103=Lテーマ番号,H103=Lテーマ番号),\"○\",\"\")","v":""}]
[3,11,1,"ものの　ようすを　つたえる　ときの　ひょうげん１","What is that? It's___. This is ____. There are ___. There is ___.",14,null,null,{"$f":"IF(OR(F104=Lテーマ番号,G104=Lテーマ番号,H104=Lテーマ番号),\"○\",\"\")","v":""}]
[3,11,2,"もくてきち　までの　せつめい","Where are you going? I'm going to ____. How long does it take to ___? It takes ___. ",10,null,null,{"$f":"IF(OR(F105=Lテーマ番号,G105=Lテーマ番号,H105=Lテーマ番号),\"○\",\"\")","v":""}]
[3,11,3,"ものの　ようすを　つたえる　ときの　ひょうげん２","What is that? It's___. This is ____. There are ___. There is ___.",14,null,null,{"$f":"IF(OR(F106=Lテーマ番号,G106=Lテーマ番号,H106=Lテーマ番号),\"○\",\"\")","v":""}]
[3,12,1,"していること，できることに　ついての　やりとり","What are you doing? I'm ___ing. Can you ___? Yes, I can. No, I can't.",16,4,null,{"$f":"IF(OR(F107=Lテーマ番号,G107=Lテーマ番号,H107=Lテーマ番号),\"○\",\"\")","v":""}]
[3,12,2,"だれのものか，だれなのか，についての　やりとり","Whose ___ is this? It's ___. Who is ___? He/She is ____.",20,null,null,{"$f":"IF(OR(F108=Lテーマ番号,G108=Lテーマ番号,H108=Lテーマ番号),\"○\",\"\")","v":""}]
[3,12,3,"かいもの，てんきに　ついての　ひょうげん","___, please. How many___? It's ____. ",8,13,null,{"$f":"IF(OR(F109=Lテーマ番号,G109=Lテーマ番号,H109=Lテーマ番号),\"○\",\"\")","v":""}]
[4,1,1,"いろいろなばめんでのやりとり１","Do you want ___? Yes, I do. No, I don't. What do you want? I want ___.",20,null,null,{"$f":"IF(OR(F110=Lテーマ番号,G110=Lテーマ番号,H110=Lテーマ番号),\"○\",\"\")","v":""}]
[4,1,2,"いろいろなばめんでのやりとり２","What do you want? I want ___. Which do you like, ___ or ___? I like___.",20,null,null,{"$f":"IF(OR(F111=Lテーマ番号,G111=Lテーマ番号,H111=Lテーマ番号),\"○\",\"\")","v":""}]
[4,1,3,"いろいろなばめんでのやりとり３","Which do you like, ___ or ___? I like___. Do you like ___? Yes, I do. No, I don't.",20,null,null,{"$f":"IF(OR(F112=Lテーマ番号,G112=Lテーマ番号,H112=Lテーマ番号),\"○\",\"\")","v":""}]
[4,2,1,"しつもんをしたり，答えたりするやりとり１","What's this? It's ___. What's that? What time? ",20,null,null,{"$f":"IF(OR(F113=Lテーマ番号,G113=Lテーマ番号,H113=Lテーマ番号),\"○\",\"\")","v":""}]
[4,2,2,"しつもんをしたり，答えたりするやりとり２","What's this? It's ___. Where __? When ___? What time?",20,null,null,{"$f":"IF(OR(F114=Lテーマ番号,G114=Lテーマ番号,H114=Lテーマ番号),\"○\",\"\")","v":""}]
[4,2,3,"しつもんをしたり，答えたりするやりとり３","What's this? It's ___. Where __? How about ___? What time?",20,null,null,{"$f":"IF(OR(F115=Lテーマ番号,G115=Lテーマ番号,H115=Lテーマ番号),\"○\",\"\")","v":""}]
[4,3,1,"いろいろなしつもんの聞き取り１","Where are you going? Which do you like, ___ or ___? ",20,null,null,{"$f":"IF(OR(F116=Lテーマ番号,G116=Lテーマ番号,H116=Lテーマ番号),\"○\",\"\")","v":""}]
[4,3,2,"いろいろなしつもんの聞き取り２","Where did you go? What did you do ____? Which do you like, ___ or ___? ",20,null,null,{"$f":"IF(OR(F117=Lテーマ番号,G117=Lテーマ番号,H117=Lテーマ番号),\"○\",\"\")","v":""}]
[4,3,3,"いろいろなしつもんの聞き取り３","Do you have ___? Do you like ___? Where did you go?  What did you do ____? ",20,null,null,{"$f":"IF(OR(F118=Lテーマ番号,G118=Lテーマ番号,H118=Lテーマ番号),\"○\",\"\")","v":""}]
[4,4,1,"ようすをつたえるひょうげん１","I'm wearing____. I'm ___. He/She is ____. He/She is wearing ___.",14,null,null,{"$f":"IF(OR(F119=Lテーマ番号,G119=Lテーマ番号,H119=Lテーマ番号),\"○\",\"\")","v":""}]
[4,4,2,"ようすをつたえるひょうげん２","He/She is _＿_. He/She is wearing ___. It's in ___.",14,null,null,{"$f":"IF(OR(F120=Lテーマ番号,G120=Lテーマ番号,H120=Lテーマ番号),\"○\",\"\")","v":""}]
[4,4,3,"ようすをつたえるひょうげん３","It's on the ____ floor. He/She is wearing ___. This is ___. ",14,null,null,{"$f":"IF(OR(F121=Lテーマ番号,G121=Lテーマ番号,H121=Lテーマ番号),\"○\",\"\")","v":""}]
[4,5,1,"時間を聞く，つたえるひょうげん１","What time does ____ start? It starts at ____. When does ___ close? It closes ___. What time is it? It's ___.",12,null,null,{"$f":"IF(OR(F122=Lテーマ番号,G122=Lテーマ番号,H122=Lテーマ番号),\"○\",\"\")","v":""}]
[4,5,2,"日にちや曜日，時間を聞くひょうげん","What's the date today? What day is it today? What time does ____ open? ",11,12,null,{"$f":"IF(OR(F123=Lテーマ番号,G123=Lテーマ番号,H123=Lテーマ番号),\"○\",\"\")","v":""}]
[4,5,3,"時間を聞く，つたえるひょうげん２","What time does ___ open? It opens at ___. What time does ___ close? It closes at ___.",12,null,null,{"$f":"IF(OR(F124=Lテーマ番号,G124=Lテーマ番号,H124=Lテーマ番号),\"○\",\"\")","v":""}]
[4,6,1,"すきなものについてのやりとり","Do you like ____? Yes, I do. No, I don't. Which do you like, ___or ___? I like___.",2,null,null,{"$f":"IF(OR(F125=Lテーマ番号,G125=Lテーマ番号,H125=Lテーマ番号),\"○\",\"\")","v":""}]
[4,6,2,"時間を聞く，つたえるひょうげん","What time does __ start? It starts at ___.  What time does __ close? It closes at ___. What time is it now? It's ___. ",12,null,null,{"$f":"IF(OR(F126=Lテーマ番号,G126=Lテーマ番号,H126=Lテーマ番号),\"○\",\"\")","v":""}]
[4,6,3,"これは何？とたずねるひょうげん","What's this? It's ___.",14,null,null,{"$f":"IF(OR(F127=Lテーマ番号,G127=Lテーマ番号,H127=Lテーマ番号),\"○\",\"\")","v":""}]
[4,7,1,"にっかについてのやりとり","What time do you  ___? I get up at ___.  I eat breakfast at ___. I go to school at ___.",19,null,null,{"$f":"IF(OR(F128=Lテーマ番号,G128=Lテーマ番号,H128=Lテーマ番号),\"○\",\"\")","v":""}]
[4,7,2,"いろいろなしつもん","Is this ___? Can you ___? Do you like ___? Which do you like, ___ or ___?",20,null,null,{"$f":"IF(OR(F129=Lテーマ番号,G129=Lテーマ番号,H129=Lテーマ番号),\"○\",\"\")","v":""}]
[4,7,3,"にっかについてのやりとり","I have lunch at ___. I do my homework from __ to __. I go to bed at ___.",19,null,null,{"$f":"IF(OR(F130=Lテーマ番号,G130=Lテーマ番号,H130=Lテーマ番号),\"○\",\"\")","v":""}]
[4,8,1,"何時かたずねるときのひょうげん","What time does ___ start?  What time does ___ open? What time does ___ close? What time is it now?",12,null,null,{"$f":"IF(OR(F131=Lテーマ番号,G131=Lテーマ番号,H131=Lテーマ番号),\"○\",\"\")","v":""}]
[4,8,2,"～があった。とつたえるときのひょうげん","I had ____ . We played　＿＿. I made ＿＿.",17,null,null,{"$f":"IF(OR(F132=Lテーマ番号,G132=Lテーマ番号,H132=Lテーマ番号),\"○\",\"\")","v":""}]
[4,8,3,"何時かたずねるときのひょうげん","What time is it? What time does ___ open? What time does ___ close? What time does ___ start?",12,null,null,{"$f":"IF(OR(F133=Lテーマ番号,G133=Lテーマ番号,H133=Lテーマ番号),\"○\",\"\")","v":""}]
[4,9,1,"かぞくについてのやりとり","There are _＿_ people in my family. I have ____. ",15,null,null,{"$f":"IF(OR(F134=Lテーマ番号,G134=Lテーマ番号,H134=Lテーマ番号),\"○\",\"\")","v":""}]
[4,9,2,"いろいろなしつもんをするときのひょうげん","What do you want to do? Where do you want to go?  Which do you want, ___ or ___? When do you ____?",20,null,null,{"$f":"IF(OR(F135=Lテーマ番号,G135=Lテーマ番号,H135=Lテーマ番号),\"○\",\"\")","v":""}]
[4,9,3,"いろいろなしつもんをするときのひょうげん","Where is ___?  What do you want? What's this?",20,null,null,{"$f":"IF(OR(F136=Lテーマ番号,G136=Lテーマ番号,H136=Lテーマ番号),\"○\",\"\")","v":""}]
[4,10,1,"しょうかいするときのひょうげん","It's ___.  It can ___. They are ___. They can ___.",14,null,null,{"$f":"IF(OR(F137=Lテーマ番号,G137=Lテーマ番号,H137=Lテーマ番号),\"○\",\"\")","v":""}]
[4,10,2,"にっかについてのやりとり","What time do you____? How many hours do you ___? When do you ____?",19,null,null,{"$f":"IF(OR(F138=Lテーマ番号,G138=Lテーマ番号,H138=Lテーマ番号),\"○\",\"\")","v":""}]
[4,10,3,"しょうかいするときのひょうげん","He/She is ___. He/She can ___. It's  ___. It has ___. He/She is wearing ___.",15,null,null,{"$f":"IF(OR(F139=Lテーマ番号,G139=Lテーマ番号,H139=Lテーマ番号),\"○\",\"\")","v":""}]
[4,11,1,"体のじょうたいをつたえるひょうげん","I'm ___. I have ___.",5,null,null,{"$f":"IF(OR(F140=Lテーマ番号,G140=Lテーマ番号,H140=Lテーマ番号),\"○\",\"\")","v":""}]
[4,11,2,"数をつたえるひょうげん","How many ___ do you have? I have ___. How many ___ are there? There are ___.",9,null,null,{"$f":"IF(OR(F141=Lテーマ番号,G141=Lテーマ番号,H141=Lテーマ番号),\"○\",\"\")","v":""}]
[4,11,3,"曜日，日にちをつたえるひょうげん","What's the date today? It's ___. What day is it today? It's ___.",11,null,null,{"$f":"IF(OR(F142=Lテーマ番号,G142=Lテーマ番号,H142=Lテーマ番号),\"○\",\"\")","v":""}]
[4,12,1,"いろいろなしつもん，ようすをつたえるひょうげん","What's that? It's ___. What are these? They are ____.",20,14,null,{"$f":"IF(OR(F143=Lテーマ番号,G143=Lテーマ番号,H143=Lテーマ番号),\"○\",\"\")","v":""}]
[4,12,2,"にっかや、むかしのことについての聞き取り","I go to school at ___. I go to bed at ___. I studied ___. I had ___. I went to ___.",19,17,null,{"$f":"IF(OR(F144=Lテーマ番号,G144=Lテーマ番号,H144=Lテーマ番号),\"○\",\"\")","v":""}]
[4,12,3,"いろいろなしつもんをするときのひょうげん","What do you want to ___? Where is ___? Which do you like, ___ or ___? Why do you like ___?",20,null,null,{"$f":"IF(OR(F145=Lテーマ番号,G145=Lテーマ番号,H145=Lテーマ番号),\"○\",\"\")","v":""}]
[null,null,null,null,"2023.03.16 ver."]

{"sheet":"リスニング検索","index":1,"n_rows":21,"n_cols":8,"rows_kept":21,"cut":false,"hidden":false,"merged":[[1,2,1,5]]}
["■リスニングテーマから検索",null,"★検索",null,null,null,null,"テーマ番号"]
["1. あいさつや自己紹介",null,"検索する項目を選択してください",null,null,null,null,{"$f":"IFERROR(VALUE(LEFT(C2,FIND(\".\",C2,1))),\"-\")","v":"-"}]
["2. 好きなもの・ことのやりとり"]
["3. 持ちもののやりとり"]
["4. できることのやりとり"]
["5. 気持ちや体の状態のやりとり",null,"★該当レッスン数"]
["6. 教室でのやりとり",null,"（数）"]
["7. 欲しいもののやりとり"]
["8. 買い物のやりとり",null,"★該当レッスン内容"]
["9. 数のやりとり",null,"Level","Step","Lesson","テーマ","キーフレーズ例"]
["10. 場所や位置のやりとり"]
["11. 日にちや曜日のやりとり"]
["12. 時刻や時間のやりとり"]
["13. 天気のやりとり"]
["14. ものの様子のやりとりや説明"]
["15. 家族・知り合いを紹介"]
["16. していることのやりとり"]
["17. 過去のできごとのやりとり"]
["18. お願いする・許可を求める・誘う"]
["19. することや日課のやりとり"]
["20. いろいろな質問・いろいろな場面でのやりとり"]

{"sheet":"単語","index":2,"n_rows":220,"n_cols":6,"rows_kept":220,"cut":false,"hidden":false,"merged":[]}
["Level","Step","Lesson","テーマ","出題内容","検索用"]
[1,1,1,"きく（いろ・かたち）","black, gray, green, red, yellow",{"$f":"E2&\",\"","v":"black, gray, green, red, yellow,"}]
[1,1,2,"きく（たべもの・のみもの）","apple, banana, cherry, orange, peach",{"$f":"E3&\",\"","v":"apple, banana, cherry, orange, peach,"}]
[1,1,3,"きく（かず）","five, four, one, three, two","five, four, one, three, two,"]
[1,1,4,"きく（がっこうせいかつ）","badminton, baseball, basketball, soccer, tennis","badminton, baseball, basketball, soccer, tennis,"]
[1,1,5,"きく（たべもの・のみもの）","coffee, cola, juice, milk, water","coffee, cola, juice, milk, water,"]
[1,2,1,"きく（たべもの・のみもの）","cake, chocolate, cookie, donut, ice cream","cake, chocolate, cookie, donut, ice cream,"]
[1,2,2,"きく（形容詞）","happy, hungry, sleepy, thirsty, tired","happy, hungry, sleepy, thirsty, tired,"]
[1,2,3,"きく（かていせいかつ）","ball, balloon, doll, puzzle, toy","ball, balloon, doll, puzzle, toy,"]
[1,2,4,"きく（どうぶつ）","bear, cat, dog, elephant, rabbit","bear, cat, dog, elephant, rabbit,"]
[1,2,5,"きく（がっこうせいかつ）","eraser, glue, pen, ruler, scissors","eraser, glue, pen, ruler, scissors,"]
[1,3,1,"きく（どうぶつ）","cow, horse, lion, pig, sheep","cow, horse, lion, pig, sheep,"]
[1,3,2,"きく（ひと・かぞく）","brother, father, mother, sister, uncle","brother, father, mother, sister, uncle,"]
[1,3,3,"きく（かず）","eight, nine, seven, six, ten","eight, nine, seven, six, ten,"]
[1,3,4,"きく（たべもの・のみもの）","grapefruit, grapes, melon, pear, strawberry","grapefruit, grapes, melon, pear, strawberry,"]
[1,3,5,"きく（たべもの・のみもの）","French fries, omelet, salad, soup, steak","French fries, omelet, salad, soup, steak,"]
[1,4,1,"きく（いろ・かたち）","color, gold, pink, purple, white","color, gold, pink, purple, white,"]
[1,4,2,"きく（まち・のりもの）","airplane, bike, bus, motorcycle, truck","airplane, bike, bus, motorcycle, truck,"]
[1,4,3,"きく（がっこうせいかつ）","colored pencil, notebook, pencil, pencil case, stapler","colored pencil, notebook, pencil, pencil case, stapler,"]
[1,4,4,"きく（たべもの・のみもの）","carrot, corn, onion, potato, tomato","carrot, corn, onion, potato, tomato,"]
[1,4,5,"きく（しぜん）","ant, bee, beetle, butterfly, dragonfly","ant, bee, beetle, butterfly, dragonfly,"]
[1,5,1,"きく（たべもの・のみもの）","beef, chicken, egg, fried chicken, ham","beef, chicken, egg, fried chicken, ham,"]
[1,5,2,"きく（がっこうせいかつ）","bat, blackboard, book, gym, playground","bat, blackboard, book, gym, playground,"]
[1,5,3,"きく（形容詞）","big, long, short, small, young","big, long, short, small, young,"]
[1,5,4,"きく（たべもの・のみもの）","cocoa, fruit juice, ice, tea, water","cocoa, fruit juice, ice, tea, water,"]
[1,5,5,"きく（たべもの・のみもの）","cereal, cheese, popcorn, potato chips, yogurt","cereal, cheese, popcorn, potato chips, yogurt,"]
[1,6,1,"ふくしゅう１","beetle, black, brother, carrot, five, happy, scissors, sheep, strawberry, tennis, yogurt, young","beetle, black, brother, carrot, five, happy, scissors, sheep, strawberry, tennis, yogurt, young,"]
[1,6,2,"ふくしゅう２","basketball, butterfly, cherry, lion, long, notebook, potato, purple, ruler, salad, seven, thirsty","basketball, butterfly, cherry, lion, long, notebook, potato, purple, ruler, salad, seven, thirsty,"]
[1,7,1,"きく（どうぶつ）","fox, giraffe, gorilla, monkey, tiger","fox, giraffe, gorilla, monkey, tiger,"]
[1,7,2,"きく（形容詞）","cold, hot, new, old, sweet","cold, hot, new, old, sweet,"]
[1,7,3,"きく（かていせいかつ）","cup, dish, fork, spoon, table","cup, dish, fork, spoon, table,"]
[1,7,4,"きく（ひと・かぞく）","boy, child, girl, pet, woman","boy, child, girl, pet, woman,"]
[1,7,5,"きく（しぜん）","fire, flower, mountain, sea, sky","fire, flower, mountain, sea, sky,"]
[1,8,1,"きく（がっこうせいかつ）","classroom, crayon, flag, library, textbook","classroom, crayon, flag, library, textbook,"]
[1,8,2,"きく（たべもの・のみもの）","fish, hamburger, meat, rice, vegetable","fish, hamburger, meat, rice, vegetable,"]
[1,8,3,"きく（どうぶつ）","bird, cow, horse, mouse, sheep","bird, cow, horse, mouse, sheep,"]
[1,8,4,"きく（かていせいかつ）","bed, camera, door, telephone, TV","bed, camera, door, telephone, TV,"]
[1,8,5,"きく（かず）","eleven, fifteen, fourteen, thirteen, twelve","eleven, fifteen, fourteen, thirteen, twelve,"]
[1,9,1,"きく（がっこうせいかつ）","drum, guitar, piano, recorder, violin","drum, guitar, piano, recorder, violin,"]
[1,9,2,"きく（がっこうせいかつ）","bag, card, chair, clock, paper","bag, card, chair, clock, paper,"]
[1,9,3,"きく（しぜん）","rain, river, star, sun, wind","rain, river, star, sun, wind,"]
[1,9,4,"きく（どうぶつ）","chick, duck, goat, hamster, snake","chick, duck, goat, hamster, snake,"]
[1,9,5,"きく（かず）","eighteen, nineteen, seventeen, sixteen, twenty","eighteen, nineteen, seventeen, sixteen, twenty,"]
[1,10,1,"きく（かていせいかつ）","teddy bear, toothbrush, toy car, video game, yo-yo","teddy bear, toothbrush, toy car, video game, yo-yo,"]
[1,10,2,"きく（まち・のりもの）","ambulance, police car, taxi, train, van","ambulance, police car, taxi, train, van,"]
[1,10,3,"きく（ほうこう・ほうがく）","back, center, left, right, straight","back, center, left, right, straight,"]
[1,10,4,"きく（かていせいかつ）","can, frying pan, glass, kitchen, plate","can, frying pan, glass, kitchen, plate,"]
[1,10,5,"きく（かず）","fifty, forty, sixty, thirty, zero","fifty, forty, sixty, thirty, zero,"]
[1,11,1,"きく（まち・のりもの）","bakery, bench, bookstore, park, school","bakery, bench, bookstore, park, school,"]
[1,11,2,"きく（かず）","eighty, hundred, ninety, number, seventy","eighty, hundred, ninety, number, seventy,"]
[1,11,3,"きく（からだ・けんこう）","body, eye, face, hand, head","body, eye, face, hand, head,"]
[1,11,4,"きく（形容詞）","cloudy, rainy, snowy, sunny, windy","cloudy, rainy, snowy, sunny, windy,"]
[1,11,5,"きく（たべもの・のみもの）","apple pie, candy, grapes, gum, watermelon","apple pie, candy, grapes, gum, watermelon,"]
[1,12,1,"ふくしゅう１","airplane, bear, black, book, cake, carrot, corn, eraser, father, French fries, lion, rabbit, ruler, seven, short, stapler, strawberry, tennis, thirsty, water","airplane, bear, black, book, cake, carrot, corn, eraser, father, French fries, lion, rabbit, ruler, seven, short, stapler, strawberry, tennis, thirsty, water,"]
[1,12,2,"ふくしゅう２","bed, bookstore, chair, cloudy, dish, fish, frying pan, head, kitchen, mountain, new, ninety, piano, police car, river, sixteen, tiger, video game, woman, zero","bed, bookstore, chair, cloudy, dish, fish, frying pan, head, kitchen, mountain, new, ninety, piano, police car, river, sixteen, tiger, video game, woman, zero,"]
[2,1,1,"きく（がっこうせいかつ）","game, judo, ping pong, skiing, sport","game, judo, ping pong, skiing, sport,"]
[2,1,2,"きく（がっこうせいかつ）","dodgeball, running, softball, swimming, volleyball","dodgeball, running, softball, swimming, volleyball,"]
[2,1,3,"きく（がっこうせいかつ）","art, English, math, music, science","art, English, math, music, science,"]
[2,1,4,"きく（がっこうせいかつ）","answer, English, P.E., social studies, subject","answer, English, P.E., social studies, subject,"]
[2,1,5,"きく（しぜん）","caterpillar, grasshopper, ladybug, moth, mouse","caterpillar, grasshopper, ladybug, moth, mouse,"]
[2,1,6,"きく（いろ・かたち）","cube, line, shape, sharp, size","cube, line, shape, sharp, size,"]
[2,2,1,"きく（がっこうせいかつ）","cafeteria, marker, microphone, swimming pool, whiteboard","cafeteria, marker, microphone, swimming pool, whiteboard,"]
[2,2,2,"きく（がっこうせいかつ）","art room, classroom, computer room, music room, nurse's office","art room, classroom, computer room, music room, nurse's office,"]
[2,2,3,"きく（ひと・かぞく）","family, friend, man, pet, women","family, friend, man, pet, women,"]
[2,2,4,"きく（がっこうせいかつ）","castanet, harmonica, notebook, tambourine, textbook","castanet, harmonica, notebook, tambourine, textbook,"]
[2,2,5,"きく（しぜん）","forest, hill, island, rain, river","forest, hill, island, rain, river,"]
[2,2,6,"きく（いろ・かたち）","circle, diamond, heart, square, triangle",{"$f":"E67&\",\"","v":"circle, diamond, heart, square, triangle,"}]
[2,3,1,"きく（しぜん）","cicada, fly, grasshopper, mantis, snail","cicada, fly, grasshopper, mantis, snail,"]
[2,3,2,"きく（かず）","fifth, first, fourth, second, third","fifth, first, fourth, second, third,"]
[2,3,3,"きく（ひと・かぞく）","baby, daughter, husband, son, wife","baby, daughter, husband, son, wife,"]
[2,3,4,"きく（まち・のりもの）","hospital, police station, shop, town, train","hospital, police station, shop, town, train,"]
[2,3,5,"きく（しぜん）","beach, moon, smoke, snow, weather","beach, moon, smoke, snow, weather,"]
[2,3,6,"きく（いろ・かたち）","blue, brown, pink, purple, silver","blue, brown, pink, purple, silver,"]
[2,4,1,"きく（かていせいかつ）","clothes, dress, jacket, shirt, sweater","clothes, dress, jacket, shirt, sweater,"]
[2,4,2,"きく（かず）","eighth, ninth, seventh, sixth, tenth","eighth, ninth, seventh, sixth, tenth,"]
[2,4,3,"きく（ひと・かぞく）","children, parents, student, teacher, women","children, parents, student, teacher, women,"]
[2,4,4,"きく（まち・のりもの）","bank, hotel, movie, park, station","bank, hotel, movie, park, station,"]
[2,4,5,"きく（しぜん）","leaf, ocean, seaweed, stream, sunshine","leaf, ocean, seaweed, stream, sunshine,"]
[2,4,6,"きく（たべもの・のみもの）","bread, fruit, hamburger, rice, sandwich","bread, fruit, hamburger, rice, sandwich,"]
[2,5,1,"きく（かていせいかつ）","pajamas, pants, shoes, socks, T-shirt","pajamas, pants, shoes, socks, T-shirt,"]
[2,5,2,"きく（かていせいかつ）","hairbrush, kettle, knife, pan, pot","hairbrush, kettle, knife, pan, pot,"]
[2,5,3,"きく（ひと・かぞく）","aunt, cousin, grandfather, grandmother, people","aunt, cousin, grandfather, grandmother, people,"]
[2,5,4,"きく（まち・のりもの）","airport, apartment, bay, fence, store","airport, apartment, bay, fence, store,"]
[2,5,5,"きく（しぜん）","eagle, kitten, parrot, penguin, whale","eagle, kitten, parrot, penguin, whale,"]
[2,5,6,"きく（たべもの・のみもの）","curry and rice, hot dog, noodles, pizza, spaghetti","curry and rice, hot dog, noodles, pizza, spaghetti,"]
[2,6,1,"ふくしゅう１","answer, bay, cafeteria, English, game, grasshopper, hotel, husband, kettle, moon, music room, notebook, penguin, pet, shop, softball, spaghetti, square, sweater, teacher","answer, bay, cafeteria, English, game, grasshopper, hotel, husband, kettle, moon, music room, notebook, penguin, pet, shop, softball, spaghetti, square, sweater, teacher,"]
[2,6,2,"ふくしゅう２","art room, brown, children, eighth, forest, fourth, grandfather, hot dog, mouse, pajamas, ping pong, running, sandwich, size, social studies, stream, tambourine, town, whale, whiteboard","art room, brown, children, eighth, forest, fourth, grandfather, hot dog, mouse, pajamas, ping pong, running, sandwich, size, social studies, stream, tambourine, town, whale, whiteboard,"]
[2,7,1,"きく（かていせいかつ）","comb, shampoo, soap, toothpaste, towel","comb, shampoo, soap, toothpaste, towel,"]
[2,7,2,"きく（がっこうせいかつ）","alphabet, homework, lesson, test, type","alphabet, homework, lesson, test, type,"]
[2,7,3,"きく（まち・のりもの）","bus stop, cart, exit, supermarket, tunnel","bus stop, cart, exit, supermarket, tunnel,"]
[2,7,4,"きく（とき・きせつ）","April, February, January, March, May","April, February, January, March, May,"]
[2,7,5,"きく（しぜん）","alligator, hippopotamus, shrimp, squirrel, turtle","alligator, hippopotamus, shrimp, squirrel, turtle,"]
[2,7,6,"きく（たべもの・のみもの）","breakfast, dinner, food, lunch, menu","breakfast, dinner, food, lunch, menu,"]
[2,8,1,"きく（かていせいかつ）","newspaper, picture, pillow, rug, sofa","newspaper, picture, pillow, rug, sofa,"]
[2,8,2,"きく（形容詞）","angry, busy, cool, fat, fine","angry, busy, cool, fat, fine,"]
[2,8,3,"きく（まち・のりもの）","car, helicopter, rocket, ship, train","car, helicopter, rocket, ship, train,"]
[2,8,4,"きく（とき・きせつ）","August, July, June, October, September","August, July, June, October, September,"]
[2,8,5,"きく（しぜん）","kangaroo, koala, lobster, octopus, ostrich","kangaroo, koala, lobster, octopus, ostrich,"]
[2,8,6,"きく（たべもの・のみもの）","asparagus, broccoli, celery, cucumber, mushroom","asparagus, broccoli, celery, cucumber, mushroom,"]
[2,9,1,"きく（かていせいかつ）","alarm clock, cushion, mat, name, vase","alarm clock, cushion, mat, name, vase,"]
[2,9,2,"きく（形容詞）","bad, glad, good, great, sad","bad, glad, good, great, sad,"]
[2,9,3,"きく（しぜん）","crab, dolphin, frog, seal, shark","crab, dolphin, frog, seal, shark,"]
[2,9,4,"きく（とき・きせつ）","August, December, November, October, September","August, December, November, October, September,"]
[2,9,5,"きく（しぜん）","panda, pelican, rooster, starfish, zebra","panda, pelican, rooster, starfish, zebra,"]
[2,9,6,"きく（たべもの・のみもの）","avocado, eggplant, green pepper, lettuce, spinach","avocado, eggplant, green pepper, lettuce, spinach,"]
[2,10,1,"きく（どうさひょうげん）","drink milk, eat lunch, get dressed, get home, get to school","drink milk, eat lunch, get dressed, get home, get to school,"]
[2,10,2,"きく（形容詞）","cute, little, nice, sour, tall","cute, little, nice, sour, tall,"]
[2,10,3,"きく（形容詞）","fast, fun, high, low, slow","fast, fun, high, low, slow,"]
[2,10,4,"きく（とき・きせつ）","day, Monday, month, Sunday, week","day, Monday, month, Sunday, week,"]
[2,10,5,"きく（たべもの・のみもの）","butter, jam, pepper, salt, sugar","butter, jam, pepper, salt, sugar,"]
[2,10,6,"きく（からだ・けんこう）","arm, foot, hair, leg, nail","arm, foot, hair, leg, nail,"]
[2,11,1,"きく（どうさひょうげん）","get up, go to bed, go to school, leave home, open your book","get up, go to bed, go to school, leave home, open your book,"]
[2,11,2,"きく（形容詞）","cool, many, stormy, warm, young","cool, many, stormy, warm, young,"]
[2,11,3,"きく（とき・きせつ）","Friday, Saturday, Thursday, Tuesday, Wednesday","Friday, Saturday, Thursday, Tuesday, Wednesday,"]
[2,11,4,"きく（からだ・けんこう）","ear, finger, mouth, nose, shoulder","ear, finger, mouth, nose, shoulder,"]
[2,11,5,"きく（からだ・けんこう）","mouth, neck, sneeze, teeth, toe","mouth, neck, sneeze, teeth, toe,"]
[2,11,6,"きく（からだ・けんこう）","cough, fever, headache, stomachache, toothache","cough, fever, headache, stomachache, toothache,"]
[2,12,1,"ふくしゅう１","answer, art room, cafeteria, caterpillar, curry and rice, diamond, dodgeball, English, fence, forest, fourth, friend, game, grandfather, grandmother, hamburger, hot dog, husband, island, jacket, judo, marker, math, moon, pajamas, parents, sandwich, shoes, shop, silver, snail, softball, subject, sunshine, sweater, tambourine, teacher, weather, whale, whiteboard","answer, art room, cafeteria, caterpillar, curry and rice, diamond, dodgeball, English, fence, forest, fourth, friend, game, grandfather, grandmother, hamburger, hot dog, husband, island, jacket, judo, marker, math, moon, pajamas, parents, sandwich, shoes, shop, silver, snail, softball, subject, sunshine, sweater, tambourine, teacher, weather, whale, whiteboard,"]
[2,12,2,"ふくしゅう２","alarm clock, alligator, alphabet, April, August, breakfast, bus stop, busy, butter, cushion, December, dolphin, eat lunch, Friday, glad, go to bed, green pepper, headache, helicopter, high, kangaroo, leave home, leg, lesson, little, month, mushroom, octopus, pillow, shark, shoulder, soap, squirrel, starfish, stomachache, stormy, supermarket, teeth, toothpaste, Wednesday","alarm clock, alligator, alphabet, April, August, breakfast, bus stop, busy, butter, cushion, December, dolphin, eat lunch, Friday, glad, go to bed, green pepper, headache, helicopter, high, kangaroo, leave home, leg, lesson, little, month, mushroom, octopus, pillow, shark, shoulder, soap, squirrel, starfish, stomachache, stormy, supermarket, teeth, toothpaste, Wednesday,"]
[3,1,1,"きく（たべもの・のみもの）","ketchup, papaya, pineapple, pumpkin, soy sauce","ketchup, papaya, pineapple, pumpkin, soy sauce,"]
[3,1,2,"きく（しぜん）","animal, jellyfish, sea otter, sheep, zoo","animal, jellyfish, sea otter, sheep, zoo,"]
[3,1,3,"きく（とき・きせつ）","calendar, fall, spring, summer, winter","calendar, fall, spring, summer, winter,"]
[3,1,4,"きく（とき・きせつ）","everyday, Halloween, noon, summer vacation, year","everyday, Halloween, noon, summer vacation, year,"]
[3,1,5,"きく（まち・のりもの）","bridge, city, dock, restaurant, street","bridge, city, dock, restaurant, street,"]
[3,1,6,"よむ（くだもの・やさい・どうぶつ）","apple, banana, cat, dog, lion, orange, panda, potato, rabbit, tomato","apple, banana, cat, dog, lion, orange, panda, potato, rabbit, tomato,"]
[3,2,1,"きく（まち・のりもの）","aquarium, department store, factory, museum, supermarket","aquarium, department store, factory, museum, supermarket,"]
[3,2,2,"きく（まち・のりもの）","drugstore, fire engine, fire station, flower shop, gas station","drugstore, fire engine, fire station, flower shop, gas station,"]
[3,2,3,"きく（まち・のりもの）","grocery store, high school, junior high school, office building, police station","grocery store, high school, junior high school, office building, police station,"]
[3,2,4,"きく（まち・のりもの）","bookstore, flower shop, pet shop, post office, train station","bookstore, flower shop, pet shop, post office, train station,"]
[3,2,5,"きく（まち・のりもの）","boat, sandbox, seesaw, slide, toy store","boat, sandbox, seesaw, slide, toy store,"]
[3,2,6,"よむ（ぶんぼうぐ・たべもの）","ball, book, egg, eraser, fish, juice, milk, notebook, pencil, tea",{"$f":"E131&\",\"","v":"ball, book, egg, eraser, fish, juice, milk, notebook, pencil, tea,"}]
[3,3,1,"きく（かず）","eleventh, fifteenth, fourteenth, thirteenth, twelfth","eleventh, fifteenth, fourteenth, thirteenth, twelfth,"]
[3,3,2,"きく（かていせいかつ）","DVD, hair dryer, teapot, toilet paper, trash","DVD, hair dryer, teapot, toilet paper, trash,"]
[3,3,3,"きく（かていせいかつ）","box, brush, computer, fan, letter","box, brush, computer, fan, letter,"]
[3,3,4,"きく（動詞）","give, hear, look, see, tell","give, hear, look, see, tell,"]
[3,3,5,"よむ（きるもの・形容詞）","cap, dress, fine, good, happy, hat, hot, pants, sad, shirt","cap, dress, fine, good, happy, hat, hot, pants, sad, shirt,"]
[3,4,1,"きく（かず）","eighteenth, nineteenth, seventeenth, sixteenth, twentieth","eighteenth, nineteenth, seventeenth, sixteenth, twentieth,"]
[3,4,2,"きく（がっこうせいかつ）","classmate, elementary school, jump rope, swimsuit, timetable","classmate, elementary school, jump rope, swimsuit, timetable,"]
[3,4,3,"きく（どうさひょうげん）","sit down, stand up, study math, use my computer, write a letter","sit down, stand up, study math, use my computer, write a letter,"]
[3,4,4,"きく（動詞）","eat, play, read, study, write","eat, play, read, study, write,"]
[3,4,5,"よむ（形容詞・いろ）","big, blue, green, new, old, pink, red, small","big, blue, green, new, old, pink, red, small,"]
[3,5,1,"きく（かていせいかつ）","battery, closet, mail, mop, storybook","battery, closet, mail, mop, storybook,"]
[3,5,2,"きく（がっこうせいかつ）","bell, dictionary, globe, Internet, telescope","bell, dictionary, globe, Internet, telescope,"]
[3,5,3,"きく（どうさひょうげん）","take a bath, take a shower, wash my face, wash the dishes, watch TV","take a bath, take a shower, wash my face, wash the dishes, watch TV,"]
[3,5,4,"きく（動詞）","draw, drink, hit, listen, sing","draw, drink, hit, listen, sing,"]
[3,5,5,"よむ（かぞく・かず）","brother, father, five, four, mother, one, sister, three, two","brother, father, five, four, mother, one, sister, three, two,"]
[3,6,1,"ふくしゅう１","computer, eleventh, fall, fan, museum, police station, pumpkin, restaurant, sit down, soy sauce, spring, study math, supermarket, take a shower, twelfth, twentieth, wash my face, watch TV, winter, write a letter","computer, eleventh, fall, fan, museum, police station, pumpkin, restaurant, sit down, soy sauce, spring, study math, supermarket, take a shower, twelfth, twentieth, wash my face, watch TV, winter, write a letter,"]
[3,6,2,"ふくしゅう２","bookstore, classmate, drink, drugstore, eat, give, hair dryer, Internet, jump rope, listen, look, post office, read, sheep, sing, summer vacation, tell, train station, trash, zoo","bookstore, classmate, drink, drugstore, eat, give, hair dryer, Internet, jump rope, listen, look, post office, read, sheep, sing, summer vacation, tell, train station, trash, zoo,"]
[3,7,1,"きく（かていせいかつ）","hat, jeans, ring, skirt, underwear","hat, jeans, ring, skirt, underwear,"]
[3,7,2,"きく（かていせいかつ）","cap, raincoat, tights, underpants, undershirt","cap, raincoat, tights, underpants, undershirt,"]
[3,7,3,"きく（かていせいかつ）","door, home, house, room, window","door, home, house, room, window,"]
[3,7,4,"きく（動詞）","clap, cook, kick, ride, wash","clap, cook, kick, ride, wash,"]
[3,7,5,"きく（どうさひょうげん）","look at, slow down, speed up, turn off, turn on","look at, slow down, speed up, turn off, turn on,"]
[3,8,1,"きく（かていせいかつ）","bath, floor, key, paint, wall","bath, floor, key, paint, wall,"]
[3,8,2,"きく（形容詞）","bitter, dark, deep, far, sweet","bitter, dark, deep, far, sweet,"]
[3,8,3,"きく（形容詞）","delicious, dry, loud, pretty, wet","delicious, dry, loud, pretty, wet,"]
[3,8,4,"きく（しゅみ・あそび）","cooking, cycling, fishing, picnic, vacation","cooking, cycling, fishing, picnic, vacation,"]
[3,8,5,"きく（しゅみ・あそび）","jogging, party, reading, shopping, song","jogging, party, reading, shopping, song,"]
[3,9,1,"きく（ほうこう・ほうがく）","east, here, north, south, west","east, here, north, south, west,"]
[3,9,2,"きく（とき・きせつ）","night, time, today, watch, year","night, time, today, watch, year,"]
[3,9,3,"きく（とき・きせつ）","evening, hour, minute, morning, yesterday","evening, hour, minute, morning, yesterday,"]
[3,9,4,"きく（とき・きせつ）","afternoon, birthday, tomorrow, tonight, weekend","afternoon, birthday, tomorrow, tonight, weekend,"]
[3,9,5,"きく（形容詞）","free, last, left, right, small","free, last, left, right, small,"]
[3,10,1,"きく（がっこうせいかつ）","class, question, record, team, word","class, question, record, team, word,"]
[3,10,2,"きく（かず）","billion, million, number, thirtieth, thousand","billion, million, number, thirtieth, thousand,"]
[3,10,3,"きく（しぜん）","air, earth, field, land, light","air, earth, field, land, light,"]
[3,10,4,"きく（しぜん）","farm, hole, stone, wave, wood","farm, hole, stone, wave, wood,"]
[3,10,5,"きく（しぜん）","grass, ground, lake, pond, wood","grass, ground, lake, pond, wood,"]
[3,11,1,"きく（動詞）","come, go, live, run, talk","come, go, live, run, talk,"]
[3,11,2,"きく（動詞）","dance, sit, speak, stand, walk","dance, sit, speak, stand, walk,"]
[3,11,3,"きく（動詞）","go, jump, ski, sleep, swim","go, jump, ski, sleep, swim,"]
[3,11,4,"きく（動詞）","get up, play baseball, read a book, ride a bicycle, wake up","get up, play baseball, read a book, ride a bicycle, wake up,"]
[3,11,5,"きく（動詞）","call, have, like, need, read","call, have, like, need, read,"]
[3,12,1,"ふくしゅう１","billion, brush, call, computer, draw, earth, eleventh, fifteenth, grass, ground, hair dryer, jump rope, light, number, play, question, read, read a book, ride a bicycle, run, sing, stand up, stone, storybook, swim, telescope, thirtieth, timetable, toilet paper, twentieth, wash my face, watch, watch TV","billion, brush, call, computer, draw, earth, eleventh, fifteenth, grass, ground, hair dryer, jump rope, light, number, play, question, read, read a book, ride a bicycle, run, sing, stand up, stone, storybook, swim, telescope, thirtieth, timetable, toilet paper, twentieth, wash my face, watch, watch TV,"]
[3,12,2,"ふくしゅう２","aquarium, bath, birthday, bookstore, cooking, delicious, dock, door, east, everyday, fall, far, fire engine, fishing, floor, home, morning, pretty, pumpkin, raincoat, restaurant, right, sandbox, sea otter, shopping, skirt, slide, slow down, south, soy sauce, spring, supermarket, tomorrow, turn off, underpants, underwear, vacation, wash, watch, year","aquarium, bath, birthday, bookstore, cooking, delicious, dock, door, east, everyday, fall, far, fire engine, fishing, floor, home, morning, pretty, pumpkin, raincoat, restaurant, right, sandbox, sea otter, shopping, skirt, slide, slow down, south, soy sauce, spring, supermarket, tomorrow, turn off, underpants, underwear, vacation, wash, watch, year,"]
[4,1,1,"きく（かていせいかつ）","bathroom, bedroom, garden, living room, restroom","bathroom, bedroom, garden, living room, restroom,"]
[4,1,2,"きく（からだ・けんこう）","bone, cheek, eyebrow, knee, medicine","bone, cheek, eyebrow, knee, medicine,"]
[4,1,3,"きく（がいねん）","dream, holiday, idea, love, smile","dream, holiday, idea, love, smile,"]
[4,1,4,"きく（動詞）","bark, cut, know, skate, slow down, speed up","bark, cut, know, skate, slow down, speed up,"]
[4,2,1,"きく（がっこうせいかつ）","festival, page, practice, principal, uniform","festival, page, practice, principal, uniform,"]
[4,2,2,"きく（かていせいかつ）","bottle, bowl, dining room, refrigerator, stove","bottle, bowl, dining room, refrigerator, stove,"]
[4,2,3,"きく（がっこうせいかつ）","direction, here, member, planet, reading","direction, here, member, planet, reading,"]
[4,2,4,"きく（形容詞）","beautiful, best, both, dirty, large","beautiful, best, both, dirty, large,"]
[4,3,1,"きく（かていせいかつ）","hanger, oven, toaster, trash can, washing machine","hanger, oven, toaster, trash can, washing machine,"]
[4,3,2,"きく（がいねん）","change, end, start, thing, work","change, end, start, thing, work,"]
[4,3,3,"きく（かていせいかつ）","iron, magazine, map, mobile phone, radio","iron, magazine, map, mobile phone, radio,"]
[4,3,4,"きく（形容詞）","early, famous, final, hard, late","early, famous, final, hard, late,"]
[4,4,1,"きく（まち・のりもの）","kindergarten, merry-go-round, parking, rule, stop sign","kindergarten, merry-go-round, parking, rule, stop sign,"]
[4,4,2,"きく（ひと・かぞく）","artist, astronaut, doctor, farmer, scientist","artist, astronaut, doctor, farmer, scientist,"]
[4,4,3,"きく（かていせいかつ）","backpack, fireworks, glasses, sunglasses, umbrella","backpack, fireworks, glasses, sunglasses, umbrella,"]
[4,4,4,"きく（形容詞）","near, popular, quick, quiet, real, round","near, popular, quick, quiet, real, round,"]
[4,5,1,"きく（動詞）","ask, do, enjoy, know, mean, use","ask, do, enjoy, know, mean, use,"]
[4,5,2,"きく（ひと・かぞく）","actor, cook, nurse, pilot, singer","actor, cook, nurse, pilot, singer,"]
[4,5,3,"きく（動詞）","clean, practice, push, sell, show, teach","clean, practice, push, sell, show, teach,"]
[4,5,4,"きく（形容詞）","noisy, scared, silent, simple, soft, wide",{"$f":"E195&\",\"","v":"noisy, scared, silent, simple, soft, wide,"}]
[4,6,1,"ふくしゅう１","bark, bathroom, bone, bottle, cook, doctor, early, festival, kindergarten, know, large, love, near, practice, radio, reading, scared, thing, toaster, umbrella","bark, bathroom, bone, bottle, cook, doctor, early, festival, kindergarten, know, large, love, near, practice, radio, reading, scared, thing, toaster, umbrella,"]
[4,6,2,"ふくしゅう２","ask, astronaut, bedroom, dining room, dirty, dream, end, fireworks, late, medicine, mobile phone, nurse, oven, planet, push, round, slow down, stop sign, uniform, wide","ask, astronaut, bedroom, dining room, dirty, dream, end, fireworks, late, medicine, mobile phone, nurse, oven, planet, push, round, slow down, stop sign, uniform, wide,"]
[4,7,1,"きく（動詞）","answer, change, hold, learn, open, want","answer, change, hold, learn, open, want,"]
[4,7,2,"きく（ひと・かぞく）","barber, bus driver, firefighter, police officer, soccer player","barber, bus driver, firefighter, police officer, soccer player,"]
[4,7,3,"きく（がいねん）","free, group, idea, point, sound","free, group, idea, point, sound,"]
[4,7,4,"きく（形容詞）","crazy, fresh, funny, lovely, only, rich","crazy, fresh, funny, lovely, only, rich,"]
[4,8,1,"きく（動詞）","begin, buy, meet, pass, say, wait","begin, buy, meet, pass, say, wait,"]
[4,8,2,"きく（動詞）","check, miss, paint, park, throw, try","check, miss, paint, park, throw, try,"]
[4,8,3,"きく（動詞）","dry, fit, love, repeat, slow down, smell","dry, fit, love, repeat, slow down, smell,"]
[4,8,4,"きく（形容詞）","next, salty, shy, strong, weak","next, salty, shy, strong, weak,"]
[4,9,1,"きく（動詞）","get, join, lose, send, share, spend","get, join, lose, send, share, spend,"]
[4,9,2,"きく（動詞）","bite, knock, pull, put, shoot, wake","bite, knock, pull, put, shoot, wake,"]
[4,9,3,"きく（動詞）","brush, mail, mix, pour, swing, watch","brush, mail, mix, pour, swing, watch,"]
[4,9,4,"きく（形容詞）","clean, favorite, front, half, heavy, light","clean, favorite, front, half, heavy, light,"]
[4,10,1,"きく（動詞）","drive, make, pick, skip, wear, wet","drive, make, pick, skip, wear, wet,"]
[4,10,2,"きく（動詞）","arrive, bake, finish, fold, pull, visit","arrive, bake, finish, fold, pull, visit,"]
[4,10,3,"きく（形容詞）","kind, old, sick, thick, thin","kind, old, sick, thick, thin,"]
[4,10,4,"きく（がいねん）","free, fun, order, smell, way","free, fun, order, smell, way,"]
[4,11,1,"きく（動詞）","catch, choose, drop, find, touch, win","catch, choose, drop, find, touch, win,"]
[4,11,2,"きく（動詞）","become, close, cry, smile, stay, work","become, close, cry, smile, stay, work,"]
[4,11,3,"きく（動詞）","arrive, fly, laugh, sleep, stop, travel","arrive, fly, laugh, sleep, stop, travel,"]
[4,11,4,"きく（動詞）","blow, hurry, rain, rise, shout","blow, hurry, rain, rise, shout,"]
[4,12,1,"ふくしゅう１","actor, artist, ask, bathroom, beautiful, bone, both, change, cheek, dining room, dirty, do, doctor, early, end, final, glasses, here, holiday, kindergarten, know, love, magazine, nurse, oven, parking, planet, practice, principal, push, quick, radio, round, simple, skate, stove, teach, trash can, umbrella, wide","actor, artist, ask, bathroom, beautiful, bone, both, change, cheek, dining room, dirty, do, doctor, early, end, final, glasses, here, holiday, kindergarten, know, love, magazine, nurse, oven, parking, planet, practice, principal, push, quick, radio, round, simple, skate, stove, teach, trash can, umbrella, wide,"]
[4,12,2,"ふくしゅう２","arrive, barber, become, begin, bus driver, buy, change, clean, drop, dry, fly, free, hold, join, kind, light, lose, lovely, mail, mix, next, only, order, paint, pick, pull, rain, repeat, rise, salty, sick, sleep, smile, sound, throw, visit, wake, way, wear, win","arrive, barber, become, begin, bus driver, buy, change, clean, drop, dry, fly, free, hold, join, kind, light, lose, lovely, mail, mix, next, only, order, paint, pick, pull, rain, repeat, rise, salty, sick, sleep, smile, sound, throw, visit, wake, way, wear, win,"]
[null,null,null,null,"2023.03.16 ver."]

{"sheet":"単語検索","index":3,"n_rows":928,"n_cols":11,"rows_kept":928,"cut":false,"hidden":false,"merged":[[1,2,1,5]]}
["■単語カテゴリ検索",null,"★単語カテゴリ検索",null,null,null,null,"検索ワード","■検索ワード一覧",null,"■単語一覧"]
["1. 色・形",null,"検索する項目を選択してください",null,null,null,null,{"$f":"IFERROR(INDIRECT(ADDRESS(1+VALUE(LEFT(C2,FIND(\".\",C2,1))),9)),\"-\")","v":"-"},"いろ",null,"actor"]
["2. 概念",null,null,null,null,null,"↓単語検索はこちらから",null,"がいねん",null,"afternoon"]
["3. 数",null,null,null,null,null,null,null,"かず",null,"air"]
["4. 学校生活",null,null,null,null,null,null,null,"がっこう",null,"airplane"]
["5. 家庭生活",null,"★該当レッスン数",null,null,null,null,null,"かてい",null,"airport"]
["6. 体・健康",null,"（数）",null,null,null,null,null,"からだ",null,"alarm clock"]
["7. 自然",null,null,null,null,null,null,null,"しぜん",null,"alligator"]
["8. 趣味・遊び",null,"★該当レッスン内容",null,null,null,null,null,"しゅみ",null,"alphabet"]
["9. 食べ物・飲み物",null,"Level","Step","Lesson","テーマ","出題内容",null,"たべもの",null,"ambulance"]
["10. 動作表現",null,null,null,null,null,null,null,"どうさ",null,"angry"]
["11. 動物",null,null,null,null,null,null,null,"どうぶつ",null,"animal"]
["12. 時・季節",null,null,null,null,null,null,null,"とき",null,"answer"]
["13. 人・家族",null,null,null,null,null,null,null,"かぞく",null,"ant"]
["14. 方向・方角",null,null,null,null,null,null,null,"ほうこう",null,"apartment"]
["15. 町・乗り物",null,null,null,null,null,null,null,"まち",null,"apple"]
["16. 形容詞",null,null,null,null,null,null,null,"形容詞",null,"apple pie"]
["17. 動詞",null,null,null,null,null,null,null,"動詞",null,"April"]
["18. 復習",null,null,null,null,null,null,null,"ふくしゅう",null,"aquarium"]
[null,null,null,null,null,null,null,null,null,null,"arm"]
[null,null,null,null,null,null,null,null,null,null,"arrive"]
[null,null,null,null,null,null,null,null,null,null,"art"]
[null,null,null,null,null,null,null,null,null,null,"art room"]
[null,null,null,null,null,null,null,null,null,null,"artist"]
[null,null,null,null,null,null,null,null,null,null,"ask"]
[null,null,null,null,null,null,null,null,null,null,"asparagus"]
[null,null,null,null,null,null,null,null,null,null,"astronaut"]
[null,null,null,null,null,null,null,null,null,null,"August"]
[null,null,null,null,null,null,null,null,null,null,"aunt"]
[null,null,null,null,null,null,null,null,null,null,"avocado"]
[null,null,null,null,null,null,null,null,null,null,"baby"]
[null,null,null,null,null,null,null,null,null,null,"back"]
[null,null,null,null,null,null,null,null,null,null,"backpack"]
[null,null,null,null,null,null,null,null,null,null,"bad"]
[null,null,null,null,null,null,null,null,null,null,"badminton"]
[null,null,null,null,null,null,null,null,null,null,"bag"]
[null,null,null,null,null,null,null,null,null,null,"bake"]
[null,null,null,null,null,null,null,null,null,null,"bakery"]
[null,null,null,null,null,null,null,null,null,null,"ball"]
[null,null,null,null,null,null,null,null,null,null,"balloon"]
[null,null,null,null,null,null,null,null,null,null,"banana"]
[null,null,null,null,null,null,null,null,null,null,"bank"]
[null,null,null,null,null,null,null,null,null,null,"barber"]
[null,null,null,null,null,null,null,null,null,null,"bark"]
[null,null,null,null,null,null,null,null,null,null,"baseball"]
[null,null,null,null,null,null,null,null,null,null,"basketball"]
[null,null,null,null,null,null,null,null,null,null,"bat"]
[null,null,null,null,null,null,null,null,null,null,"bath"]
[null,null,null,null,null,null,null,null,null,null,"bathroom"]
[null,null,null,null,null,null,null,null,null,null,"battery"]
[null,null,null,null,null,null,null,null,null,null,"bay"]
[null,null,null,null,null,null,null,null,null,null,"beach"]
[null,null,null,null,null,null,null,null,null,null,"bear"]
[null,null,null,null,null,null,null,null,null,null,"beautiful"]
[null,null,null,null,null,null,null,null,null,null,"become"]
[null,null,null,null,null,null,null,null,null,null,"bed"]
[null,null,null,null,null,null,null,null,null,null,"bedroom"]
[null,null,null,null,null,null,null,null,null,null,"bee"]
[null,null,null,null,null,null,null,null,null,null,"beef"]
[null,null,null,null,null,null,null,null,null,null,"beetle"]
[null,null,null,null,null,null,null,null,null,null,"begin"]
[null,null,null,null,null,null,null,null,null,null,"bell"]
[null,null,null,null,null,null,null,null,null,null,"bench"]
[null,null,null,null,null,null,null,null,null,null,"best"]
[null,null,null,null,null,null,null,null,null,null,"big"]
[null,null,null,null,null,null,null,null,null,null,"bike"]
[null,null,null,null,null,null,null,null,null,null,"billion"]
[null,null,null,null,null,null,null,null,null,null,"bird"]
[null,null,null,null,null,null,null,null,null,null,"birthday"]
[null,null,null,null,null,null,null,null,null,null,"bite"]
[null,null,null,null,null,null,null,null,null,null,"bitter"]
[null,null,null,null,null,null,null,null,null,null,"black"]
[null,null,null,null,null,null,null,null,null,null,"blackboard"]
[null,null,null,null,null,null,null,null,null,null,"blow"]
[null,null,null,null,null,null,null,null,null,null,"blue"]
[null,null,null,null,null,null,null,null,null,null,"boat"]
[null,null,null,null,null,null,null,null,null,null,"body"]
[null,null,null,null,null,null,null,null,null,null,"bone"]
[null,null,null,null,null,null,null,null,null,null,"book"]
[null,null,null,null,null,null,null,null,null,null,"bookstore"]
[null,null,null,null,null,null,null,null,null,null,"both"]
[null,null,null,null,null,null,null,null,null,null,"bottle"]
[null,null,null,null,null,null,null,null,null,null,"bowl"]
[null,null,null,null,null,null,null,null,null,null,"box"]
[null,null,null,null,null,null,null,null,null,null,"boy"]
[null,null,null,null,null,null,null,null,null,null,"bread"]
[null,null,null,null,null,null,null,null,null,null,"breakfast"]
[null,null,null,null,null,null,null,null,null,null,"bridge"]
[null,null,null,null,null,null,null,null,null,null,"broccoli"]
[null,null,null,null,null,null,null,null,null,null,"brother"]
[null,null,null,null,null,null,null,null,null,null,"brown"]
[null,null,null,null,null,null,null,null,null,null,"brush"]
[null,null,null,null,null,null,null,null,null,null,"bus"]
[null,null,null,null,null,null,null,null,null,null,"bus driver"]
[null,null,null,null,null,null,null,null,null,null,"bus stop"]
[null,null,null,null,null,null,null,null,null,null,"busy"]
[null,null,null,null,null,null,null,null,null,null,"butter"]
[null,null,null,null,null,null,null,null,null,null,"butterfly"]
[null,null,null,null,null,null,null,null,null,null,"buy"]
[null,null,null,null,null,null,null,null,null,null,"cafeteria"]
[null,null,null,null,null,null,null,null,null,null,"cake"]
[null,null,null,null,null,null,null,null,null,null,"calendar"]
[null,null,null,null,null,null,null,null,null,null,"call"]
[null,null,null,null,null,null,null,null,null,null,"camera"]
[null,null,null,null,null,null,null,null,null,null,"can"]
[null,null,null,null,null,null,null,null,null,null,"candy"]
[null,null,null,null,null,null,null,null,null,null,"cap"]
[null,null,null,null,null,null,null,null,null,null,"car"]
[null,null,null,null,null,null,null,null,null,null,"card"]
[null,null,null,null,null,null,null,null,null,null,"carrot"]
[null,null,null,null,null,null,null,null,null,null,"cart"]
[null,null,null,null,null,null,null,null,null,null,"castanet"]
[null,null,null,null,null,null,null,null,null,null,"cat"]
[null,null,null,null,null,null,null,null,null,null,"catch"]
[null,null,null,null,null,null,null,null,null,null,"caterpillar"]
[null,null,null,null,null,null,null,null,null,null,"celery"]
[null,null,null,null,null,null,null,null,null,null,"center"]
[null,null,null,null,null,null,null,null,null,null,"cereal"]
[null,null,null,null,null,null,null,null,null,null,"chair"]
[null,null,null,null,null,null,null,null,null,null,"change"]
[null,null,null,null,null,null,null,null,null,null,"check"]
[null,null,null,null,null,null,null,null,null,null,"cheek"]
[null,null,null,null,null,null,null,null,null,null,"cheese"]
[null,null,null,null,null,null,null,null,null,null,"cherry"]
[null,null,null,null,null,null,null,null,null,null,"chick"]
[null,null,null,null,null,null,null,null,null,null,"chicken"]
[null,null,null,null,null,null,null,null,null,null,"child"]
[null,null,null,null,null,null,null,null,null,null,"children"]
[null,null,null,null,null,null,null,null,null,null,"chocolate"]
[null,null,null,null,null,null,null,null,null,null,"choose"]
[null,null,null,null,null,null,null,null,null,null,"cicada"]
[null,null,null,null,null,null,null,null,null,null,"circle"]
[null,null,null,null,null,null,null,null,null,null,"city"]
[null,null,null,null,null,null,null,null,null,null,"clap"]
[null,null,null,null,null,null,null,null,null,null,"class"]
[null,null,null,null,null,null,null,null,null,null,"classmate"]
[null,null,null,null,null,null,null,null,null,null,"classroom"]
[null,null,null,null,null,null,null,null,null,null,"clean"]
[null,null,null,null,null,null,null,null,null,null,"clock"]
[null,null,null,null,null,null,null,null,null,null,"close"]
[null,null,null,null,null,null,null,null,null,null,"closet"]
[null,null,null,null,null,null,null,null,null,null,"clothes"]
[null,null,null,null,null,null,null,null,null,null,"cloudy"]
[null,null,null,null,null,null,null,null,null,null,"cocoa"]
[null,null,null,null,null,null,null,null,null,null,"coffee"]
[null,null,null,null,null,null,null,null,null,null,"cola"]
[null,null,null,null,null,null,null,null,null,null,"cold"]
[null,null,null,null,null,null,null,null,null,null,"color"]
[null,null,null,null,null,null,null,null,null,null,"colored pencil"]
[null,null,null,null,null,null,null,null,null,null,"comb"]
[null,null,null,null,null,null,null,null,null,null,"come"]
[null,null,null,null,null,null,null,null,null,null,"computer"]
[null,null,null,null,null,null,null,null,null,null,"computer room"]
[null,null,null,null,null,null,null,null,null,null,"cook"]
[null,null,null,null,null,null,null,null,null,null,"cookie"]
[null,null,null,null,null,null,null,null,null,null,"cooking"]
[null,null,null,null,null,null,null,null,null,null,"cool"]
[null,null,null,null,null,null,null,null,null,null,"corn"]
[null,null,null,null,null,null,null,null,null,null,"cough"]
[null,null,null,null,null,null,null,null,null,null,"cousin"]
[null,null,null,null,null,null,null,null,null,null,"cow"]
[null,null,null,null,null,null,null,null,null,null,"crab"]
[null,null,null,null,null,null,null,null,null,null,"crayon"]
[null,null,null,null,null,null,null,null,null,null,"crazy"]
[null,null,null,null,null,null,null,null,null,null,"cry"]
[null,null,null,null,null,null,null,null,null,null,"cube"]
[null,null,null,null,null,null,null,null,null,null,"cucumber"]
[null,null,null,null,null,null,null,null,null,null,"cup"]
[null,null,null,null,null,null,null,null,null,null,"curry and rice"]
[null,null,null,null,null,null,null,null,null,null,"cushion"]
[null,null,null,null,null,null,null,null,null,null,"cut"]
[null,null,null,null,null,null,null,null,null,null,"cute"]
[null,null,null,null,null,null,null,null,null,null,"cycling"]
[null,null,null,null,null,null,null,null,null,null,"dance"]
[null,null,null,null,null,null,null,null,null,null,"dark"]
[null,null,null,null,null,null,null,null,null,null,"daughter"]
[null,null,null,null,null,null,null,null,null,null,"day"]
[null,null,null,null,null,null,null,null,null,null,"December"]
[null,null,null,null,null,null,null,null,null,null,"deep"]
[null,null,null,null,null,null,null,null,null,null,"delicious"]
[null,null,null,null,null,null,null,null,null,null,"department store"]
[null,null,null,null,null,null,null,null,null,null,"diamond"]
[null,null,null,null,null,null,null,null,null,null,"dictionary"]
[null,null,null,null,null,null,null,null,null,null,"dining room"]
[null,null,null,null,null,null,null,null,null,null,"dinner"]
[null,null,null,null,null,null,null,null,null,null,"direction"]
[null,null,null,null,null,null,null,null,null,null,"dirty"]
[null,null,null,null,null,null,null,null,null,null,"dish"]
[null,null,null,null,null,null,null,null,null,null,"do"]
[null,null,null,null,null,null,null,null,null,null,"dock"]
[null,null,null,null,null,null,null,null,null,null,"doctor"]
[null,null,null,null,null,null,null,null,null,null,"dodgeball"]
[null,null,null,null,null,null,null,null,null,null,"dog"]
[null,null,null,null,null,null,null,null,null,null,"doll"]
[null,null,null,null,null,null,null,null,null,null,"dolphin"]
[null,null,null,null,null,null,null,null,null,null,"donut"]
[null,null,null,null,null,null,null,null,null,null,"door"]
[null,null,null,null,null,null,null,null,null,null,"dragonfly"]
[null,null,null,null,null,null,null,null,null,null,"draw"]
[null,null,null,null,null,null,null,null,null,null,"dream"]
[null,null,null,null,null,null,null,null,null,null,"dress"]
[null,null,null,null,null,null,null,null,null,null,"drink"]
[null,null,null,null,null,null,null,null,null,null,"drink milk"]
[null,null,null,null,null,null,null,null,null,null,"drive"]
[null,null,null,null,null,null,null,null,null,null,"drop"]
[null,null,null,null,null,null,null,null,null,null,"drugstore"]
[null,null,null,null,null,null,null,null,null,null,"drum"]
[null,null,null,null,null,null,null,null,null,null,"dry"]
[null,null,null,null,null,null,null,null,null,null,"duck"]
[null,null,null,null,null,null,null,null,null,null,"DVD"]
[null,null,null,null,null,null,null,null,null,null,"eagle"]
[null,null,null,null,null,null,null,null,null,null,"ear"]
[null,null,null,null,null,null,null,null,null,null,"early"]
[null,null,null,null,null,null,null,null,null,null,"earth"]
[null,null,null,null,null,null,null,null,null,null,"east"]
[null,null,null,null,null,null,null,null,null,null,"eat"]
[null,null,null,null,null,null,null,null,null,null,"eat lunch"]
[null,null,null,null,null,null,null,null,null,null,"egg"]
[null,null,null,null,null,null,null,null,null,null,"eggplant"]
[null,null,null,null,null,null,null,null,null,null,"eight"]
[null,null,null,null,null,null,null,null,null,null,"eighteen"]
[null,null,null,null,null,null,null,null,null,null,"eighteenth"]
[null,null,null,null,null,null,null,null,null,null,"eighth"]
[null,null,null,null,null,null,null,null,null,null,"eighty"]
[null,null,null,null,null,null,null,null,null,null,"elementary school"]
[null,null,null,null,null,null,null,null,null,null,"elephant"]
[null,null,null,null,null,null,null,null,null,null,"eleven"]
[null,null,null,null,null,null,null,null,null,null,"eleventh"]
[null,null,null,null,null,null,null,null,null,null,"end"]
[null,null,null,null,null,null,null,null,null,null,"English"]
[null,null,null,null,null,null,null,null,null,null,"enjoy"]
[null,null,null,null,null,null,null,null,null,null,"eraser"]
[null,null,null,null,null,null,null,null,null,null,"evening"]
[null,null,null,null,null,null,null,null,null,null,"everyday"]
[null,null,null,null,null,null,null,null,null,null,"exit"]
[null,null,null,null,null,null,null,null,null,null,"eye"]
[null,null,null,null,null,null,null,null,null,null,"eyebrow"]
[null,null,null,null,null,null,null,null,null,null,"face"]
[null,null,null,null,null,null,null,null,null,null,"factory"]
[null,null,null,null,null,null,null,null,null,null,"fall"]
[null,null,null,null,null,null,null,null,null,null,"family"]
[null,null,null,null,null,null,null,null,null,null,"famous"]
[null,null,null,null,null,null,null,null,null,null,"fan"]
[null,null,null,null,null,null,null,null,null,null,"far"]
[null,null,null,null,null,null,null,null,null,null,"farm"]
[null,null,null,null,null,null,null,null,null,null,"farmer"]
[null,null,null,null,null,null,null,null,null,null,"fast"]
[null,null,null,null,null,null,null,null,null,null,"fat"]
[null,null,null,null,null,null,null,null,null,null,"father"]
[null,null,null,null,null,null,null,null,null,null,"favorite"]
[null,null,null,null,null,null,null,null,null,null,"February"]
[null,null,null,null,null,null,null,null,null,null,"fence"]
[null,null,null,null,null,null,null,null,null,null,"festival"]
[null,null,null,null,null,null,null,null,null,null,"fever"]
[null,null,null,null,null,null,null,null,null,null,"field"]
[null,null,null,null,null,null,null,null,null,null,"fifteen"]
[null,null,null,null,null,null,null,null,null,null,"fifteenth"]
[null,null,null,null,null,null,null,null,null,null,"fifth"]
[null,null,null,null,null,null,null,null,null,null,"fifty"]
[null,null,null,null,null,null,null,null,null,null,"final"]
[null,null,null,null,null,null,null,null,null,null,"find"]
[null,null,null,null,null,null,null,null,null,null,"fine"]
[null,null,null,null,null,null,null,null,null,null,"finger"]
[null,null,null,null,null,null,null,null,null,null,"finish"]
[null,null,null,null,null,null,null,null,null,null,"fire"]
[null,null,null,null,null,null,null,null,null,null,"fire engine"]
[null,null,null,null,null,null,null,null,null,null,"fire station"]
[null,null,null,null,null,null,null,null,null,null,"firefighter"]
[null,null,null,null,null,null,null,null,null,null,"fireworks"]
[null,null,null,null,null,null,null,null,null,null,"first"]
[null,null,null,null,null,null,null,null,null,null,"fish"]
[null,null,null,null,null,null,null,null,null,null,"fishing"]
[null,null,null,null,null,null,null,null,null,null,"fit"]
[null,null,null,null,null,null,null,null,null,null,"five"]
[null,null,null,null,null,null,null,null,null,null,"flag"]
[null,null,null,null,null,null,null,null,null,null,"floor"]
[null,null,null,null,null,null,null,null,null,null,"flower"]
[null,null,null,null,null,null,null,null,null,null,"flower shop"]
[null,null,null,null,null,null,null,null,null,null,"fly"]
[null,null,null,null,null,null,null,null,null,null,"fold"]
[null,null,null,null,null,null,null,null,null,null,"food"]
[null,null,null,null,null,null,null,null,null,null,"foot"]
[null,null,null,null,null,null,null,null,null,null,"forest"]
[null,null,null,null,null,null,null,null,null,null,"fork"]
[null,null,null,null,null,null,null,null,null,null,"forty"]
[null,null,null,null,null,null,null,null,null,null,"four"]
[null,null,null,null,null,null,null,null,null,null,"fourteen"]
[null,null,null,null,null,null,null,null,null,null,"fourteenth"]
[null,null,null,null,null,null,null,null,null,null,"fourth"]
[null,null,null,null,null,null,null,null,null,null,"fox"]
[null,null,null,null,null,null,null,null,null,null,"free"]
[null,null,null,null,null,null,null,null,null,null,"French fries"]
[null,null,null,null,null,null,null,null,null,null,"fresh"]
[null,null,null,null,null,null,null,null,null,null,"Friday"]
[null,null,null,null,null,null,null,null,null,null,"fried chicken"]
[null,null,null,null,null,null,null,null,null,null,"friend"]
[null,null,null,null,null,null,null,null,null,null,"frog"]
[null,null,null,null,null,null,null,null,null,null,"front"]
[null,null,null,null,null,null,null,null,null,null,"fruit"]
[null,null,null,null,null,null,null,null,null,null,"fruit juice"]
[null,null,null,null,null,null,null,null,null,null,"frying pan"]
[null,null,null,null,null,null,null,null,null,null,"fun"]
[null,null,null,null,null,null,null,null,null,null,"funny"]
[null,null,null,null,null,null,null,null,null,null,"game"]
[null,null,null,null,null,null,null,null,null,null,"garden"]
[null,null,null,null,null,null,null,null,null,null,"gas station"]
[null,null,null,null,null,null,null,null,null,null,"get"]
[null,null,null,null,null,null,null,null,null,null,"get dressed"]
[null,null,null,null,null,null,null,null,null,null,"get home"]
[null,null,null,null,null,null,null,null,null,null,"get to school"]
[null,null,null,null,null,null,null,null,null,null,"get up"]
[null,null,null,null,null,null,null,null,null,null,"giraffe"]
[null,null,null,null,null,null,null,null,null,null,"girl"]
[null,null,null,null,null,null,null,null,null,null,"give"]
[null,null,null,null,null,null,null,null,null,null,"glad"]
[null,null,null,null,null,null,null,null,null,null,"glass"]
[null,null,null,null,null,null,null,null,null,null,"glasses"]
[null,null,null,null,null,null,null,null,null,null,"globe"]
[null,null,null,null,null,null,null,null,null,null,"glue"]
[null,null,null,null,null,null,null,null,null,null,"go"]
[null,null,null,null,null,null,null,null,null,null,"go to bed"]
[null,null,null,null,null,null,null,null,null,null,"go to school"]
[null,null,null,null,null,null,null,null,null,null,"goat"]
[null,null,null,null,null,null,null,null,null,null,"gold"]
[null,null,null,null,null,null,null,null,null,null,"good"]
[null,null,null,null,null,null,null,null,null,null,"gorilla"]
[null,null,null,null,null,null,null,null,null,null,"grandfather"]
[null,null,null,null,null,null,null,null,null,null,"grandmother"]
[null,null,null,null,null,null,null,null,null,null,"grapefruit"]
[null,null,null,null,null,null,null,null,null,null,"grapes"]
[null,null,null,null,null,null,null,null,null,null,"grass"]
[null,null,null,null,null,null,null,null,null,null,"grasshopper"]
[null,null,null,null,null,null,null,null,null,null,"gray"]
[null,null,null,null,null,null,null,null,null,null,"great"]
[null,null,null,null,null,null,null,null,null,null,"green"]
[null,null,null,null,null,null,null,null,null,null,"green pepper"]
[null,null,null,null,null,null,null,null,null,null,"grocery store"]
[null,null,null,null,null,null,null,null,null,null,"ground"]
[null,null,null,null,null,null,null,null,null,null,"group"]
[null,null,null,null,null,null,null,null,null,null,"guitar"]
[null,null,null,null,null,null,null,null,null,null,"gum"]
[null,null,null,null,null,null,null,null,null,null,"gym"]
[null,null,null,null,null,null,null,null,null,null,"hair"]
[null,null,null,null,null,null,null,null,null,null,"hair dryer"]
[null,null,null,null,null,null,null,null,null,null,"hairbrush"]
[null,null,null,null,null,null,null,null,null,null,"half"]
[null,null,null,null,null,null,null,null,null,null,"Halloween"]
[null,null,null,null,null,null,null,null,null,null,"ham"]
[null,null,null,null,null,null,null,null,null,null,"hamburger"]
[null,null,null,null,null,null,null,null,null,null,"hamster"]
[null,null,null,null,null,null,null,null,null,null,"hand"]
[null,null,null,null,null,null,null,null,null,null,"hanger"]
[null,null,null,null,null,null,null,null,null,null,"happy"]
[null,null,null,null,null,null,null,null,null,null,"hard"]
[null,null,null,null,null,null,null,null,null,null,"harmonica"]
[null,null,null,null,null,null,null,null,null,null,"hat"]
[null,null,null,null,null,null,null,null,null,null,"have"]
[null,null,null,null,null,null,null,null,null,null,"head"]
[null,null,null,null,null,null,null,null,null,null,"headache"]
[null,null,null,null,null,null,null,null,null,null,"hear"]
[null,null,null,null,null,null,null,null,null,null,"heart"]
[null,null,null,null,null,null,null,null,null,null,"heavy"]
[null,null,null,null,null,null,null,null,null,null,"helicopter"]
[null,null,null,null,null,null,null,null,null,null,"here"]
[null,null,null,null,null,null,null,null,null,null,"high"]
[null,null,null,null,null,null,null,null,null,null,"high school"]
[null,null,null,null,null,null,null,null,null,null,"hill"]
[null,null,null,null,null,null,null,null,null,null,"hippopotamus"]
[null,null,null,null,null,null,null,null,null,null,"hit"]
[null,null,null,null,null,null,null,null,null,null,"hold"]
[null,null,null,null,null,null,null,null,null,null,"hole"]
[null,null,null,null,null,null,null,null,null,null,"holiday"]
[null,null,null,null,null,null,null,null,null,null,"home"]
[null,null,null,null,null,null,null,null,null,null,"homework"]
[null,null,null,null,null,null,null,null,null,null,"horse"]
[null,null,null,null,null,null,null,null,null,null,"hospital"]
[null,null,null,null,null,null,null,null,null,null,"hot"]
[null,null,null,null,null,null,null,null,null,null,"hot dog"]
[null,null,null,null,null,null,null,null,null,null,"hotel"]
[null,null,null,null,null,null,null,null,null,null,"hour"]
[null,null,null,null,null,null,null,null,null,null,"house"]
[null,null,null,null,null,null,null,null,null,null,"hundred"]
[null,null,null,null,null,null,null,null,null,null,"hungry"]
[null,null,null,null,null,null,null,null,null,null,"hurry"]
[null,null,null,null,null,null,null,null,null,null,"husband"]
[null,null,null,null,null,null,null,null,null,null,"ice"]
[null,null,null,null,null,null,null,null,null,null,"ice cream"]
[null,null,null,null,null,null,null,null,null,null,"idea"]
[null,null,null,null,null,null,null,null,null,null,"Internet"]
[null,null,null,null,null,null,null,null,null,null,"iron"]
[null,null,null,null,null,null,null,null,null,null,"island"]
[null,null,null,null,null,null,null,null,null,null,"jacket"]
[null,null,null,null,null,null,null,null,null,null,"jam"]
[null,null,null,null,null,null,null,null,null,null,"January"]
[null,null,null,null,null,null,null,null,null,null,"jeans"]
[null,null,null,null,null,null,null,null,null,null,"jellyfish"]
[null,null,null,null,null,null,null,null,null,null,"jogging"]
[null,null,null,null,null,null,null,null,null,null,"join"]
[null,null,null,null,null,null,null,null,null,null,"judo"]
[null,null,null,null,null,null,null,null,null,null,"juice"]
[null,null,null,null,null,null,null,null,null,null,"July"]
[null,null,null,null,null,null,null,null,null,null,"jump"]
[null,null,null,null,null,null,null,null,null,null,"jump rope"]
[null,null,null,null,null,null,null,null,null,null,"June"]
[null,null,null,null,null,null,null,null,null,null,"junior high school"]
[null,null,null,null,null,null,null,null,null,null,"kangaroo"]
[null,null,null,null,null,null,null,null,null,null,"ketchup"]
[null,null,null,null,null,null,null,null,null,null,"kettle"]
[null,null,null,null,null,null,null,null,null,null,"key"]
[null,null,null,null,null,null,null,null,null,null,"kick"]
[null,null,null,null,null,null,null,null,null,null,"kind"]
[null,null,null,null,null,null,null,null,null,null,"kindergarten"]
[null,null,null,null,null,null,null,null,null,null,"kitchen"]
[null,null,null,null,null,null,null,null,null,null,"kitten"]
[null,null,null,null,null,null,null,null,null,null,"knee"]
[null,null,null,null,null,null,null,null,null,null,"knife"]
[null,null,null,null,null,null,null,null,null,null,"knock"]
[null,null,null,null,null,null,null,null,null,null,"know"]
[null,null,null,null,null,null,null,null,null,null,"koala"]
[null,null,null,null,null,null,null,null,null,null,"ladybug"]
[null,null,null,null,null,null,null,null,null,null,"lake"]
[null,null,null,null,null,null,null,null,null,null,"land"]
[null,null,null,null,null,null,null,null,null,null,"large"]
[null,null,null,null,null,null,null,null,null,null,"last"]
[null,null,null,null,null,null,null,null,null,null,"late"]
[null,null,null,null,null,null,null,null,null,null,"laugh"]
[null,null,null,null,null,null,null,null,null,null,"leaf"]
[null,null,null,null,null,null,null,null,null,null,"learn"]
[null,null,null,null,null,null,null,null,null,null,"leave home"]
[null,null,null,null,null,null,null,null,null,null,"left"]
[null,null,null,null,null,null,null,null,null,null,"leg"]
[null,null,null,null,null,null,null,null,null,null,"lesson"]
[null,null,null,null,null,null,null,null,null,null,"letter"]
[null,null,null,null,null,null,null,null,null,null,"lettuce"]
[null,null,null,null,null,null,null,null,null,null,"library"]
[null,null,null,null,null,null,null,null,null,null,"light"]
[null,null,null,null,null,null,null,null,null,null,"like"]
[null,null,null,null,null,null,null,null,null,null,"line"]
[null,null,null,null,null,null,null,null,null,null,"lion"]
[null,null,null,null,null,null,null,null,null,null,"listen"]
[null,null,null,null,null,null,null,null,null,null,"little"]
[null,null,null,null,null,null,null,null,null,null,"live"]
[null,null,null,null,null,null,null,null,null,null,"living room"]
[null,null,null,null,null,null,null,null,null,null,"lobster"]
[null,null,null,null,null,null,null,null,null,null,"long"]
[null,null,null,null,null,null,null,null,null,null,"look"]
[null,null,null,null,null,null,null,null,null,null,"look at"]
[null,null,null,null,null,null,null,null,null,null,"lose"]
[null,null,null,null,null,null,null,null,null,null,"loud"]
[null,null,null,null,null,null,null,null,null,null,"love"]
[null,null,null,null,null,null,null,null,null,null,"lovely"]
[null,null,null,null,null,null,null,null,null,null,"low"]
[null,null,null,null,null,null,null,null,null,null,"lunch"]
[null,null,null,null,null,null,null,null,null,null,"magazine"]
[null,null,null,null,null,null,null,null,null,null,"mail"]
[null,null,null,null,null,null,null,null,null,null,"make"]
[null,null,null,null,null,null,null,null,null,null,"man"]
[null,null,null,null,null,null,null,null,null,null,"mantis"]
[null,null,null,null,null,null,null,null,null,null,"many"]
[null,null,null,null,null,null,null,null,null,null,"map"]
[null,null,null,null,null,null,null,null,null,null,"March"]
[null,null,null,null,null,null,null,null,null,null,"marker"]
[null,null,null,null,null,null,null,null,null,null,"mat"]
[null,null,null,null,null,null,null,null,null,null,"math"]
[null,null,null,null,null,null,null,null,null,null,"May"]
[null,null,null,null,null,null,null,null,null,null,"mean"]
[null,null,null,null,null,null,null,null,null,null,"meat"]
[null,null,null,null,null,null,null,null,null,null,"medicine"]
[null,null,null,null,null,null,null,null,null,null,"meet"]
[null,null,null,null,null,null,null,null,null,null,"melon"]
[null,null,null,null,null,null,null,null,null,null,"member"]
[null,null,null,null,null,null,null,null,null,null,"menu"]
[null,null,null,null,null,null,null,null,null,null,"merry-go-round"]
[null,null,null,null,null,null,null,null,null,null,"microphone"]
[null,null,null,null,null,null,null,null,null,null,"milk"]
[null,null,null,null,null,null,null,null,null,null,"million"]
[null,null,null,null,null,null,null,null,null,null,"minute"]
[null,null,null,null,null,null,null,null,null,null,"miss"]
[null,null,null,null,null,null,null,null,null,null,"mix"]
[null,null,null,null,null,null,null,null,null,null,"mobile phone"]
[null,null,null,null,null,null,null,null,null,null,"Monday"]
[null,null,null,null,null,null,null,null,null,null,"monkey"]
[null,null,null,null,null,null,null,null,null,null,"month"]
[null,null,null,null,null,null,null,null,null,null,"moon"]
[null,null,null,null,null,null,null,null,null,null,"mop"]
[null,null,null,null,null,null,null,null,null,null,"morning"]
[null,null,null,null,null,null,null,null,null,null,"moth"]
[null,null,null,null,null,null,null,null,null,null,"mother"]
[null,null,null,null,null,null,null,null,null,null,"motorcycle"]
[null,null,null,null,null,null,null,null,null,null,"mountain"]
[null,null,null,null,null,null,null,null,null,null,"mouse"]
[null,null,null,null,null,null,null,null,null,null,"mouth"]
[null,null,null,null,null,null,null,null,null,null,"movie"]
[null,null,null,null,null,null,null,null,null,null,"museum"]
[null,null,null,null,null,null,null,null,null,null,"mushroom"]
[null,null,null,null,null,null,null,null,null,null,"music"]
[null,null,null,null,null,null,null,null,null,null,"music room"]
[null,null,null,null,null,null,null,null,null,null,"nail"]
[null,null,null,null,null,null,null,null,null,null,"name"]
[null,null,null,null,null,null,null,null,null,null,"near"]
[null,null,null,null,null,null,null,null,null,null,"neck"]
[null,null,null,null,null,null,null,null,null,null,"need"]
[null,null,null,null,null,null,null,null,null,null,"new"]
[null,null,null,null,null,null,null,null,null,null,"newspaper"]
[null,null,null,null,null,null,null,null,null,null,"next"]
[null,null,null,null,null,null,null,null,null,null,"nice"]
[null,null,null,null,null,null,null,null,null,null,"night"]
[null,null,null,null,null,null,null,null,null,null,"nine"]
[null,null,null,null,null,null,null,null,null,null,"nineteen"]
[null,null,null,null,null,null,null,null,null,null,"nineteenth"]
[null,null,null,null,null,null,null,null,null,null,"ninety"]
[null,null,null,null,null,null,null,null,null,null,"ninth"]
[null,null,null,null,null,null,null,null,null,null,"noisy"]
[null,null,null,null,null,null,null,null,null,null,"noodles"]
[null,null,null,null,null,null,null,null,null,null,"noon"]
[null,null,null,null,null,null,null,null,null,null,"north"]
[null,null,null,null,null,null,null,null,null,null,"nose"]
[null,null,null,null,null,null,null,null,null,null,"notebook"]
[null,null,null,null,null,null,null,null,null,null,"November"]
[null,null,null,null,null,null,null,null,null,null,"number"]
[null,null,null,null,null,null,null,null,null,null,"nurse"]
[null,null,null,null,null,null,null,null,null,null,"nurse's office"]
[null,null,null,null,null,null,null,null,null,null,"ocean"]
[null,null,null,null,null,null,null,null,null,null,"October"]
[null,null,null,null,null,null,null,null,null,null,"octopus"]
[null,null,null,null,null,null,null,null,null,null,"office building"]
[null,null,null,null,null,null,null,null,null,null,"old"]
[null,null,null,null,null,null,null,null,null,null,"omelet"]
[null,null,null,null,null,null,null,null,null,null,"one"]
[null,null,null,null,null,null,null,null,null,null,"onion"]
[null,null,null,null,null,null,null,null,null,null,"only"]
[null,null,null,null,null,null,null,null,null,null,"open"]
[null,null,null,null,null,null,null,null,null,null,"open your book"]
[null,null,null,null,null,null,null,null,null,null,"orange"]
[null,null,null,null,null,null,null,null,null,null,"order"]
[null,null,null,null,null,null,null,null,null,null,"ostrich"]
[null,null,null,null,null,null,null,null,null,null,"oven"]
[null,null,null,null,null,null,null,null,null,null,"P.E."]
[null,null,null,null,null,null,null,null,null,null,"page"]
[null,null,null,null,null,null,null,null,null,null,"paint"]
[null,null,null,null,null,null,null,null,null,null,"pajamas"]
[null,null,null,null,null,null,null,null,null,null,"pan"]
[null,null,null,null,null,null,null,null,null,null,"panda"]
[null,null,null,null,null,null,null,null,null,null,"pants"]
[null,null,null,null,null,null,null,null,null,null,"papaya"]
[null,null,null,null,null,null,null,null,null,null,"paper"]
[null,null,null,null,null,null,null,null,null,null,"parents"]
[null,null,null,null,null,null,null,null,null,null,"park"]
[null,null,null,null,null,null,null,null,null,null,"parking"]
[null,null,null,null,null,null,null,null,null,null,"parrot"]
[null,null,null,null,null,null,null,null,null,null,"party"]
[null,null,null,null,null,null,null,null,null,null,"pass"]
[null,null,null,null,null,null,null,null,null,null,"peach"]
[null,null,null,null,null,null,null,null,null,null,"pear"]
[null,null,null,null,null,null,null,null,null,null,"pelican"]
[null,null,null,null,null,null,null,null,null,null,"pen"]
[null,null,null,null,null,null,null,null,null,null,"pencil"]
[null,null,null,null,null,null,null,null,null,null,"pencil case"]
[null,null,null,null,null,null,null,null,null,null,"penguin"]
[null,null,null,null,null,null,null,null,null,null,"people"]
[null,null,null,null,null,null,null,null,null,null,"pepper"]
[null,null,null,null,null,null,null,null,null,null,"pet"]
[null,null,null,null,null,null,null,null,null,null,"pet shop"]
[null,null,null,null,null,null,null,null,null,null,"piano"]
[null,null,null,null,null,null,null,null,null,null,"pick"]
[null,null,null,null,null,null,null,null,null,null,"picnic"]
[null,null,null,null,null,null,null,null,null,null,"picture"]
[null,null,null,null,null,null,null,null,null,null,"pig"]
[null,null,null,null,null,null,null,null,null,null,"pillow"]
[null,null,null,null,null,null,null,null,null,null,"pilot"]
[null,null,null,null,null,null,null,null,null,null,"pineapple"]
[null,null,null,null,null,null,null,null,null,null,"ping pong"]
[null,null,null,null,null,null,null,null,null,null,"pink"]
[null,null,null,null,null,null,null,null,null,null,"pizza"]
[null,null,null,null,null,null,null,null,null,null,"planet"]
[null,null,null,null,null,null,null,null,null,null,"plate"]
[null,null,null,null,null,null,null,null,null,null,"play"]
[null,null,null,null,null,null,null,null,null,null,"play baseball"]
[null,null,null,null,null,null,null,null,null,null,"playground"]
[null,null,null,null,null,null,null,null,null,null,"point"]
[null,null,null,null,null,null,null,null,null,null,"police car"]
[null,null,null,null,null,null,null,null,null,null,"police officer"]
[null,null,null,null,null,null,null,null,null,null,"police station"]
[null,null,null,null,null,null,null,null,null,null,"pond"]
[null,null,null,null,null,null,null,null,null,null,"popcorn"]
[null,null,null,null,null,null,null,null,null,null,"popular"]
[null,null,null,null,null,null,null,null,null,null,"post office"]
[null,null,null,null,null,null,null,null,null,null,"pot"]
[null,null,null,null,null,null,null,null,null,null,"potato"]
[null,null,null,null,null,null,null,null,null,null,"potato chips"]
[null,null,null,null,null,null,null,null,null,null,"pour"]
[null,null,null,null,null,null,null,null,null,null,"practice"]
[null,null,null,null,null,null,null,null,null,null,"pretty"]
[null,null,null,null,null,null,null,null,null,null,"principal"]
[null,null,null,null,null,null,null,null,null,null,"pull"]
[null,null,null,null,null,null,null,null,null,null,"pumpkin"]
[null,null,null,null,null,null,null,null,null,null,"purple"]
[null,null,null,null,null,null,null,null,null,null,"push"]
[null,null,null,null,null,null,null,null,null,null,"put"]
[null,null,null,null,null,null,null,null,null,null,"puzzle"]
[null,null,null,null,null,null,null,null,null,null,"question"]
[null,null,null,null,null,null,null,null,null,null,"quick"]
[null,null,null,null,null,null,null,null,null,null,"quiet"]
[null,null,null,null,null,null,null,null,null,null,"rabbit"]
[null,null,null,null,null,null,null,null,null,null,"radio"]
[null,null,null,null,null,null,null,null,null,null,"rain"]
[null,null,null,null,null,null,null,null,null,null,"raincoat"]
[null,null,null,null,null,null,null,null,null,null,"rainy"]
[null,null,null,null,null,null,null,null,null,null,"read"]
[null,null,null,null,null,null,null,null,null,null,"read a book"]
[null,null,null,null,null,null,null,null,null,null,"reading"]
[null,null,null,null,null,null,null,null,null,null,"real"]
[null,null,null,null,null,null,null,null,null,null,"record"]
[null,null,null,null,null,null,null,null,null,null,"recorder"]
[null,null,null,null,null,null,null,null,null,null,"red"]
[null,null,null,null,null,null,null,null,null,null,"refrigerator"]
[null,null,null,null,null,null,null,null,null,null,"repeat"]
[null,null,null,null,null,null,null,null,null,null,"restaurant"]
[null,null,null,null,null,null,null,null,null,null,"restroom"]
[null,null,null,null,null,null,null,null,null,null,"rice"]
[null,null,null,null,null,null,null,null,null,null,"rich"]
[null,null,null,null,null,null,null,null,null,null,"ride"]
[null,null,null,null,null,null,null,null,null,null,"ride a bicycle"]
[null,null,null,null,null,null,null,null,null,null,"right"]
[null,null,null,null,null,null,null,null,null,null,"ring"]
[null,null,null,null,null,null,null,null,null,null,"rise"]
[null,null,null,null,null,null,null,null,null,null,"river"]
[null,null,null,null,null,null,null,null,null,null,"rocket"]
[null,null,null,null,null,null,null,null,null,null,"room"]
[null,null,null,null,null,null,null,null,null,null,"rooster"]
[null,null,null,null,null,null,null,null,null,null,"round"]
[null,null,null,null,null,null,null,null,null,null,"rug"]
[null,null,null,null,null,null,null,null,null,null,"rule"]
[null,null,null,null,null,null,null,null,null,null,"ruler"]
[null,null,null,null,null,null,null,null,null,null,"run"]
[null,null,null,null,null,null,null,null,null,null,"running"]
[null,null,null,null,null,null,null,null,null,null,"sad"]
[null,null,null,null,null,null,null,null,null,null,"salad"]
[null,null,null,null,null,null,null,null,null,null,"salt"]
[null,null,null,null,null,null,null,null,null,null,"salty"]
[null,null,null,null,null,null,null,null,null,null,"sandbox"]
[null,null,null,null,null,null,null,null,null,null,"sandwich"]
[null,null,null,null,null,null,null,null,null,null,"Saturday"]
[null,null,null,null,null,null,null,null,null,null,"say"]
[null,null,null,null,null,null,null,null,null,null,"scared"]
[null,null,null,null,null,null,null,null,null,null,"school"]
[null,null,null,null,null,null,null,null,null,null,"science"]
[null,null,null,null,null,null,null,null,null,null,"scientist"]
[null,null,null,null,null,null,null,null,null,null,"scissors"]
[null,null,null,null,null,null,null,null,null,null,"sea"]
[null,null,null,null,null,null,null,null,null,null,"sea otter"]
[null,null,null,null,null,null,null,null,null,null,"seal"]
[null,null,null,null,null,null,null,null,null,null,"seaweed"]
[null,null,null,null,null,null,null,null,null,null,"second"]
[null,null,null,null,null,null,null,null,null,null,"see"]
[null,null,null,null,null,null,null,null,null,null,"seesaw"]
[null,null,null,null,null,null,null,null,null,null,"sell"]
[null,null,null,null,null,null,null,null,null,null,"send"]
[null,null,null,null,null,null,null,null,null,null,"September"]
[null,null,null,null,null,null,null,null,null,null,"seven"]
[null,null,null,null,null,null,null,null,null,null,"seventeen"]
[null,null,null,null,null,null,null,null,null,null,"seventeenth"]
[null,null,null,null,null,null,null,null,null,null,"seventh"]
[null,null,null,null,null,null,null,null,null,null,"seventy"]
[null,null,null,null,null,null,null,null,null,null,"shampoo"]
[null,null,null,null,null,null,null,null,null,null,"shape"]
[null,null,null,null,null,null,null,null,null,null,"share"]
[null,null,null,null,null,null,null,null,null,null,"shark"]
[null,null,null,null,null,null,null,null,null,null,"sharp"]
[null,null,null,null,null,null,null,null,null,null,"sheep"]
[null,null,null,null,null,null,null,null,null,null,"ship"]
[null,null,null,null,null,null,null,null,null,null,"shirt"]
[null,null,null,null,null,null,null,null,null,null,"shoes"]
[null,null,null,null,null,null,null,null,null,null,"shoot"]
[null,null,null,null,null,null,null,null,null,null,"shop"]
[null,null,null,null,null,null,null,null,null,null,"shopping"]
[null,null,null,null,null,null,null,null,null,null,"short"]
[null,null,null,null,null,null,null,null,null,null,"shoulder"]
[null,null,null,null,null,null,null,null,null,null,"shout"]
[null,null,null,null,null,null,null,null,null,null,"show"]
[null,null,null,null,null,null,null,null,null,null,"shrimp"]
[null,null,null,null,null,null,null,null,null,null,"shy"]
[null,null,null,null,null,null,null,null,null,null,"sick"]
[null,null,null,null,null,null,null,null,null,null,"silent"]
[null,null,null,null,null,null,null,null,null,null,"silver"]
[null,null,null,null,null,null,null,null,null,null,"simple"]
[null,null,null,null,null,null,null,null,null,null,"sing"]
[null,null,null,null,null,null,null,null,null,null,"singer"]
[null,null,null,null,null,null,null,null,null,null,"sister"]
[null,null,null,null,null,null,null,null,null,null,"sit"]
[null,null,null,null,null,null,null,null,null,null,"sit down"]
[null,null,null,null,null,null,null,null,null,null,"six"]
[null,null,null,null,null,null,null,null,null,null,"sixteen"]
[null,null,null,null,null,null,null,null,null,null,"sixteenth"]
[null,null,null,null,null,null,null,null,null,null,"sixth"]
[null,null,null,null,null,null,null,null,null,null,"sixty"]
[null,null,null,null,null,null,null,null,null,null,"size"]
[null,null,null,null,null,null,null,null,null,null,"skate"]
[null,null,null,null,null,null,null,null,null,null,"ski"]
[null,null,null,null,null,null,null,null,null,null,"skiing"]
[null,null,null,null,null,null,null,null,null,null,"skip"]
[null,null,null,null,null,null,null,null,null,null,"skirt"]
[null,null,null,null,null,null,null,null,null,null,"sky"]
[null,null,null,null,null,null,null,null,null,null,"sleep"]
[null,null,null,null,null,null,null,null,null,null,"sleepy"]
[null,null,null,null,null,null,null,null,null,null,"slide"]
[null,null,null,null,null,null,null,null,null,null,"slow"]
[null,null,null,null,null,null,null,null,null,null,"slow down"]
[null,null,null,null,null,null,null,null,null,null,"small"]
[null,null,null,null,null,null,null,null,null,null,"smell"]
[null,null,null,null,null,null,null,null,null,null,"smile"]
[null,null,null,null,null,null,null,null,null,null,"smoke"]
[null,null,null,null,null,null,null,null,null,null,"snail"]
[null,null,null,null,null,null,null,null,null,null,"snake"]
[null,null,null,null,null,null,null,null,null,null,"sneeze"]
[null,null,null,null,null,null,null,null,null,null,"snow"]
[null,null,null,null,null,null,null,null,null,null,"snowy"]
[null,null,null,null,null,null,null,null,null,null,"soap"]
[null,null,null,null,null,null,null,null,null,null,"soccer"]
[null,null,null,null,null,null,null,null,null,null,"soccer player"]
[null,null,null,null,null,null,null,null,null,null,"social studies"]
[null,null,null,null,null,null,null,null,null,null,"socks"]
[null,null,null,null,null,null,null,null,null,null,"sofa"]
[null,null,null,null,null,null,null,null,null,null,"soft"]
[null,null,null,null,null,null,null,null,null,null,"softball"]
[null,null,null,null,null,null,null,null,null,null,"son"]
[null,null,null,null,null,null,null,null,null,null,"song"]
[null,null,null,null,null,null,null,null,null,null,"sound"]
[null,null,null,null,null,null,null,null,null,null,"soup"]
[null,null,null,null,null,null,null,null,null,null,"sour"]
[null,null,null,null,null,null,null,null,null,null,"south"]
[null,null,null,null,null,null,null,null,null,null,"soy sauce"]
[null,null,null,null,null,null,null,null,null,null,"spaghetti"]
[null,null,null,null,null,null,null,null,null,null,"speak"]
[null,null,null,null,null,null,null,null,null,null,"speed up"]
[null,null,null,null,null,null,null,null,null,null,"spend"]
[null,null,null,null,null,null,null,null,null,null,"spinach"]
[null,null,null,null,null,null,null,null,null,null,"spoon"]
[null,null,null,null,null,null,null,null,null,null,"sport"]
[null,null,null,null,null,null,null,null,null,null,"spring"]
[null,null,null,null,null,null,null,null,null,null,"square"]
[null,null,null,null,null,null,null,null,null,null,"squirrel"]
[null,null,null,null,null,null,null,null,null,null,"stand"]
[null,null,null,null,null,null,null,null,null,null,"stand up"]
[null,null,null,null,null,null,null,null,null,null,"stapler"]
[null,null,null,null,null,null,null,null,null,null,"star"]
[null,null,null,null,null,null,null,null,null,null,"starfish"]
[null,null,null,null,null,null,null,null,null,null,"start"]
[null,null,null,null,null,null,null,null,null,null,"station"]
[null,null,null,null,null,null,null,null,null,null,"stay"]
[null,null,null,null,null,null,null,null,null,null,"steak"]
[null,null,null,null,null,null,null,null,null,null,"stomachache"]
[null,null,null,null,null,null,null,null,null,null,"stone"]
[null,null,null,null,null,null,null,null,null,null,"stop"]
[null,null,null,null,null,null,null,null,null,null,"stop sign"]
[null,null,null,null,null,null,null,null,null,null,"store"]
[null,null,null,null,null,null,null,null,null,null,"stormy"]
[null,null,null,null,null,null,null,null,null,null,"storybook"]
[null,null,null,null,null,null,null,null,null,null,"stove"]
[null,null,null,null,null,null,null,null,null,null,"straight"]
[null,null,null,null,null,null,null,null,null,null,"strawberry"]
[null,null,null,null,null,null,null,null,null,null,"stream"]
[null,null,null,null,null,null,null,null,null,null,"street"]
[null,null,null,null,null,null,null,null,null,null,"strong"]
[null,null,null,null,null,null,null,null,null,null,"student"]
[null,null,null,null,null,null,null,null,null,null,"study"]
[null,null,null,null,null,null,null,null,null,null,"study math"]
[null,null,null,null,null,null,null,null,null,null,"subject"]
[null,null,null,null,null,null,null,null,null,null,"sugar"]
[null,null,null,null,null,null,null,null,null,null,"summer"]
[null,null,null,null,null,null,null,null,null,null,"summer vacation"]
[null,null,null,null,null,null,null,null,null,null,"sun"]
[null,null,null,null,null,null,null,null,null,null,"Sunday"]
[null,null,null,null,null,null,null,null,null,null,"sunglasses"]
[null,null,null,null,null,null,null,null,null,null,"sunny"]
[null,null,null,null,null,null,null,null,null,null,"sunshine"]
[null,null,null,null,null,null,null,null,null,null,"supermarket"]
[null,null,null,null,null,null,null,null,null,null,"sweater"]
[null,null,null,null,null,null,null,null,null,null,"sweet"]
[null,null,null,null,null,null,null,null,null,null,"swim"]
[null,null,null,null,null,null,null,null,null,null,"swimming"]
[null,null,null,null,null,null,null,null,null,null,"swimming pool"]
[null,null,null,null,null,null,null,null,null,null,"swimsuit"]
[null,null,null,null,null,null,null,null,null,null,"swing"]
[null,null,null,null,null,null,null,null,null,null,"table"]
[null,null,null,null,null,null,null,null,null,null,"take a bath"]
[null,null,null,null,null,null,null,null,null,null,"take a shower"]
[null,null,null,null,null,null,null,null,null,null,"talk"]
[null,null,null,null,null,null,null,null,null,null,"tall"]
[null,null,null,null,null,null,null,null,null,null,"tambourine"]
[null,null,null,null,null,null,null,null,null,null,"taxi"]
[null,null,null,null,null,null,null,null,null,null,"tea"]
[null,null,null,null,null,null,null,null,null,null,"teach"]
[null,null,null,null,null,null,null,null,null,null,"teacher"]
[null,null,null,null,null,null,null,null,null,null,"team"]
[null,null,null,null,null,null,null,null,null,null,"teapot"]
[null,null,null,null,null,null,null,null,null,null,"teddy bear"]
[null,null,null,null,null,null,null,null,null,null,"teeth"]
[null,null,null,null,null,null,null,null,null,null,"telephone"]
[null,null,null,null,null,null,null,null,null,null,"telescope"]
[null,null,null,null,null,null,null,null,null,null,"tell"]
[null,null,null,null,null,null,null,null,null,null,"ten"]
[null,null,null,null,null,null,null,null,null,null,"tennis"]
[null,null,null,null,null,null,null,null,null,null,"tenth"]
[null,null,null,null,null,null,null,null,null,null,"test"]
[null,null,null,null,null,null,null,null,null,null,"textbook"]
[null,null,null,null,null,null,null,null,null,null,"thick"]
[null,null,null,null,null,null,null,null,null,null,"thin"]
[null,null,null,null,null,null,null,null,null,null,"thing"]
[null,null,null,null,null,null,null,null,null,null,"third"]
[null,null,null,null,null,null,null,null,null,null,"thirsty"]
[null,null,null,null,null,null,null,null,null,null,"thirteen"]
[null,null,null,null,null,null,null,null,null,null,"thirteenth"]
[null,null,null,null,null,null,null,null,null,null,"thirtieth"]
[null,null,null,null,null,null,null,null,null,null,"thirty"]
[null,null,null,null,null,null,null,null,null,null,"thousand"]
[null,null,null,null,null,null,null,null,null,null,"three"]
[null,null,null,null,null,null,null,null,null,null,"throw"]
[null,null,null,null,null,null,null,null,null,null,"Thursday"]
[null,null,null,null,null,null,null,null,null,null,"tiger"]
[null,null,null,null,null,null,null,null,null,null,"tights"]
[null,null,null,null,null,null,null,null,null,null,"time"]
[null,null,null,null,null,null,null,null,null,null,"timetable"]
[null,null,null,null,null,null,null,null,null,null,"tired"]
[null,null,null,null,null,null,null,null,null,null,"toaster"]
[null,null,null,null,null,null,null,null,null,null,"today"]
[null,null,null,null,null,null,null,null,null,null,"toe"]
[null,null,null,null,null,null,null,null,null,null,"toilet paper"]
[null,null,null,null,null,null,null,null,null,null,"tomato"]
[null,null,null,null,null,null,null,null,null,null,"tomorrow"]
[null,null,null,null,null,null,null,null,null,null,"tonight"]
[null,null,null,null,null,null,null,null,null,null,"toothache"]
[null,null,null,null,null,null,null,null,null,null,"toothbrush"]
[null,null,null,null,null,null,null,null,null,null,"toothpaste"]
[null,null,null,null,null,null,null,null,null,null,"touch"]
[null,null,null,null,null,null,null,null,null,null,"towel"]
[null,null,null,null,null,null,null,null,null,null,"town"]
[null,null,null,null,null,null,null,null,null,null,"toy"]
[null,null,null,null,null,null,null,null,null,null,"toy car"]
[null,null,null,null,null,null,null,null,null,null,"toy store"]
[null,null,null,null,null,null,null,null,null,null,"train"]
[null,null,null,null,null,null,null,null,null,null,"train station"]
[null,null,null,null,null,null,null,null,null,null,"trash"]
[null,null,null,null,null,null,null,null,null,null,"trash can"]
[null,null,null,null,null,null,null,null,null,null,"travel"]
[null,null,null,null,null,null,null,null,null,null,"triangle"]
[null,null,null,null,null,null,null,null,null,null,"truck"]
[null,null,null,null,null,null,null,null,null,null,"try"]
[null,null,null,null,null,null,null,null,null,null,"T-shirt"]
[null,null,null,null,null,null,null,null,null,null,"Tuesday"]
[null,null,null,null,null,null,null,null,null,null,"tunnel"]
[null,null,null,null,null,null,null,null,null,null,"turn off"]
[null,null,null,null,null,null,null,null,null,null,"turn on"]
[null,null,null,null,null,null,null,null,null,null,"turtle"]
[null,null,null,null,null,null,null,null,null,null,"TV"]
[null,null,null,null,null,null,null,null,null,null,"twelfth"]
[null,null,null,null,null,null,null,null,null,null,"twelve"]
[null,null,null,null,null,null,null,null,null,null,"twentieth"]
[null,null,null,null,null,null,null,null,null,null,"twenty"]
[null,null,null,null,null,null,null,null,null,null,"two"]
[null,null,null,null,null,null,null,null,null,null,"type"]
[null,null,null,null,null,null,null,null,null,null,"umbrella"]
[null,null,null,null,null,null,null,null,null,null,"uncle"]
[null,null,null,null,null,null,null,null,null,null,"underpants"]
[null,null,null,null,null,null,null,null,null,null,"undershirt"]
[null,null,null,null,null,null,null,null,null,null,"underwear"]
[null,null,null,null,null,null,null,null,null,null,"uniform"]
[null,null,null,null,null,null,null,null,null,null,"use"]
[null,null,null,null,null,null,null,null,null,null,"use my computer"]
[null,null,null,null,null,null,null,null,null,null,"vacation"]
[null,null,null,null,null,null,null,null,null,null,"van"]
[null,null,null,null,null,null,null,null,null,null,"vase"]
[null,null,null,null,null,null,null,null,null,null,"vegetable"]
[null,null,null,null,null,null,null,null,null,null,"video game"]
[null,null,null,null,null,null,null,null,null,null,"violin"]
[null,null,null,null,null,null,null,null,null,null,"visit"]
[null,null,null,null,null,null,null,null,null,null,"volleyball"]
[null,null,null,null,null,null,null,null,null,null,"wait"]
[null,null,null,null,null,null,null,null,null,null,"wake"]
[null,null,null,null,null,null,null,null,null,null,"wake up"]
[null,null,null,null,null,null,null,null,null,null,"walk"]
[null,null,null,null,null,null,null,null,null,null,"wall"]
[null,null,null,null,null,null,null,null,null,null,"want"]
[null,null,null,null,null,null,null,null,null,null,"warm"]
[null,null,null,null,null,null,null,null,null,null,"wash"]
[null,null,null,null,null,null,null,null,null,null,"wash my face"]
[null,null,null,null,null,null,null,null,null,null,"wash the dishes"]
[null,null,null,null,null,null,null,null,null,null,"washing machine"]
[null,null,null,null,null,null,null,null,null,null,"watch"]
[null,null,null,null,null,null,null,null,null,null,"watch TV"]
[null,null,null,null,null,null,null,null,null,null,"water"]
[null,null,null,null,null,null,null,null,null,null,"watermelon"]
[null,null,null,null,null,null,null,null,null,null,"wave"]
[null,null,null,null,null,null,null,null,null,null,"way"]
[null,null,null,null,null,null,null,null,null,null,"weak"]
[null,null,null,null,null,null,null,null,null,null,"wear"]
[null,null,null,null,null,null,null,null,null,null,"weather"]
[null,null,null,null,null,null,null,null,null,null,"Wednesday"]
[null,null,null,null,null,null,null,null,null,null,"week"]
[null,null,null,null,null,null,null,null,null,null,"weekend"]
[null,null,null,null,null,null,null,null,null,null,"west"]
[null,null,null,null,null,null,null,null,null,null,"wet"]
[null,null,null,null,null,null,null,null,null,null,"whale"]
[null,null,null,null,null,null,null,null,null,null,"white"]
[null,null,null,null,null,null,null,null,null,null,"whiteboard"]
[null,null,null,null,null,null,null,null,null,null,"wide"]
[null,null,null,null,null,null,null,null,null,null,"wife"]
[null,null,null,null,null,null,null,null,null,null,"win"]
[null,null,null,null,null,null,null,null,null,null,"wind"]
[null,null,null,null,null,null,null,null,null,null,"window"]
[null,null,null,null,null,null,null,null,null,null,"windy"]
[null,null,null,null,null,null,null,null,null,null,"winter"]
[null,null,null,null,null,null,null,null,null,null,"woman"]
[null,null,null,null,null,null,null,null,null,null,"women"]
[null,null,null,null,null,null,null,null,null,null,"wood"]
[null,null,null,null,null,null,null,null,null,null,"word"]
[null,null,null,null,null,null,null,null,null,null,"work"]
[null,null,null,null,null,null,null,null,null,null,"write"]
[null,null,null,null,null,null,null,null,null,null,"write a letter"]
[null,null,null,null,null,null,null,null,null,null,"year"]
[null,null,null,null,null,null,null,null,null,null,"yellow"]
[null,null,null,null,null,null,null,null,null,null,"yesterday"]
[null,null,null,null,null,null,null,null,null,null,"yogurt"]
[null,null,null,null,null,null,null,null,null,null,"young"]
[null,null,null,null,null,null,null,null,null,null,"yo-yo"]
[null,null,null,null,null,null,null,null,null,null,"zebra"]
[null,null,null,null,null,null,null,null,null,null,"zero"]
[null,null,null,null,null,null,null,null,null,null,"zoo"]

{"sheet":"アルファベット","index":4,"n_rows":74,"n_cols":5,"rows_kept":74,"cut":false,"hidden":false,"merged":[]}
["Level","Step","Lesson","テーマ","出題内容"]
[1,1,1,"かたちと かたち（A - I）","A, B, C, D, E, F, G, H, I"]
[1,1,2,"おとと かたち（A - I）","A, B, C, D, E, F, G, H, I"]
[1,1,3,"かたちと おと（A - I）","A, B, C, D, E, F, G, H, I"]
[1,1,4,"かたちと かたち（J - R）","J, K, L, M, N, O, P, Q, R"]
[1,1,5,"おとと かたち（J - R）","J, K, L, M, N, O, P, Q, R"]
[1,1,6,"かたちと おと（J - R）","J, K, L, M, N, O, P, Q, R"]
[1,2,1,"かたちと かたち（S - Z）","S, T, U, V, W, X, Y, Z"]
[1,2,2,"おとと かたち（S - Z）","S, T, U, V, W, X, Y, Z"]
[1,2,3,"かたちと おと（S - Z）","S, T, U, V, W, X, Y, Z"]
[1,2,4,"かたちが にている おおもじ１","B, P, R, D, E, F, I, L"]
[1,2,5,"かたちが にている おおもじ２","J, U, V, W, Y, M, N"]
[1,2,6,"おとが にている おおもじ","B, G, D, V, F, S, X, L, M, N"]
[1,3,1,"おおもじ ふくしゅう１","M, V, N, L, J, Z, Y, H, R, W, T, S, Q"]
[1,3,2,"おおもじ ふくしゅう２","I, E, X, U, P, G, F, D, K, B, O, A, C"]
[1,3,3,"おおもじ ３もじ１","CAT, USE, DOG, SIX, RED, BUS, JAM, FAN, EGG"]
[1,3,4,"おおもじ ３もじ２","CAT, KEY, HAM, PIG, VAN, WET, ZOO, ICE, ANT"]
[1,3,5,"おおもじ ４もじ１","BIRD, FROG, LION, BEAR, CAKE, GAME, QUIZ, HAND, KITE"]
[1,3,6,"おおもじ ４もじ２","BIRD, MILK, NOSE, OPEN, TREE, BOAT, GRAY, DESK, RICE"]
[1,4,1,"かき（A - F）","A, B, C, D, E, F"]
[1,4,2,"かき（G - L）","G, H, I, J, K, L"]
[1,5,1,"かき（M - S）","M, N, O, P, Q, R, S"]
[1,5,2,"かき（T - Z）","T, U, V, W, X, Y, Z"]
[1,6,1,"おおもじ そうふくしゅう１","A, B, C, D, E, F, G, H, I, J, K, L, M"]
[1,6,2,"おおもじ そうふくしゅう２","N, O, P, Q, R, S, T, U, V, W, X, Y, Z"]
[1,7,1,"かたちと かたち（a - i）","a, b, c, d, e, f, g, h, i"]
[1,7,2,"おとと かたち（a - i）","a, b, c, d, e, f, g, h, i"]
[1,7,3,"かたちと おと（a - i）","a, b, c, d, e, f, g, h, i"]
[1,7,4,"かたちと かたち（j - r）","j, k, l, m, n, o, p, q, r"]
[1,7,5,"おとと かたち（j - r）","j, k, l, m, n, o, p, q, r"]
[1,7,6,"かたちと おと（j - r）","j, k, l, m, n, o, p, q, r"]
[1,8,1,"かたちと かたち（s - z）","s, t, u, v, w, x, y, z"]
[1,8,2,"おとと かたち（s - z）","s, t, u, v, w, x, y, z"]
[1,8,3,"かたちと おと（s - z）","s, t, u, v, w, x, y, z"]
[1,8,4,"かたちが にている こもじ１","a, c, e, o, i, l, j"]
[1,8,5,"かたちが にている こもじ２","u, v, w, y, s, z, x"]
[1,8,6,"おとが にている こもじ１","b, g, d, v, f, s, x"]
[1,9,1,"かたちが にている こもじ３","r, h, n, m, f, t, l"]
[1,9,2,"かたちが にている こもじ４","b, p, d, q, g, j, i"]
[1,9,3,"おとが にている こもじ２","b, g, d, v, l, m, n"]
[1,9,4,"こもじ ふくしゅう","a, b, c, d, e, f, g, h, i, j, k, l, m, n, o, p, q, r, s, t, u, v, w, x, y, z"]
[1,9,5,"こもじ ３もじ","cat, use, dog, six, red, bus, jam, fan, egg, key, ham, pig, van, wet, zoo, ice, ant"]
[1,9,6,"こもじ ４もじ","bird, frog, lion, bear, cake, game, quiz, hand, kite, milk, nose, open, tree, boat, gray, desk, rice"]
[1,10,1,"かき（a - f）","a, b, c, d, e, f"]
[1,10,2,"かき（g - l）","g, h, i, j, k, l"]
[1,11,1,"かき（m - s）","m, n, o, p, q, r, s"]
[1,11,2,"かき（t - z）","t, u, v, w, x, y, z"]
[1,12,1,"こもじ　そうふくしゅう１","a, b, c, d, e, f, g, h, i, j, k, l, m"]
[1,12,2,"こもじ　そうふくしゅう２","n, o, p, q, r, s, t, u, v, w, x, y, z"]
[2,1,1,"おおもじ ふくしゅう１","A, B, C, D, E, F, G, H, I, J, K, L, M"]
[2,1,2,"おおもじ ふくしゅう２","N, O, P, Q, R, S, T, U, V, W, X, Y, Z"]
[2,1,3,"かたちがにている　おおもじ","B, P, R, D, E, F, I, L, J, U, V, W, Y, M, N"]
[2,1,4,"かき（A - I）","A, B, C, D, E, F, G, H, I"]
[2,1,5,"かき（J - R）","J, K, L, M, N, O, P, Q, R"]
[2,1,6,"かき（S - Z）","S, T, U, V, W, X, Y, Z"]
[2,2,1,"かたちがにている こもじ１","a, c, e, o, i, l, j"]
[2,2,2,"おとと かたち（a - i）","a, b, c, d, e, f, g, h, i"]
[2,2,3,"かたちがにている こもじ２","b, p, d, q, g, j, i"]
[2,2,4,"おとと かたち（j - r）","j, k, l, m, n, o, p, q, r"]
[2,2,5,"かたちがにている こもじ３","r, h, n, m, f, t, l"]
[2,2,6,"おとと かたち（s - z）","s, t, u, v, w, x, y, z"]
[2,3,1,"おとがにている こもじ１","b, g, d, v, f, s, x"]
[2,3,2,"こもじ　そうふくしゅう１","a, b, c, d, e, f, g, h, i, j, k, l, m"]
[2,3,3,"こもじ　そうふくしゅう２","n, o, p, q, r, s, t, u, v, w, x, y, z"]
[2,3,4,"かき（a - i）","a, b, c, d, e, f, g, h, i"]
[2,3,5,"かき（j - r）","j, k, l, m, n, o, p, q, r"]
[2,3,6,"かき（s - z）","s, t, u, v, w, x, y, z"]
[2,6,1,"おおもじ 3もじ１","CAT, USE, DOG, SIX, RED, BUS, JAM, FAN, EGG, KEY, HAM, PIG, VAN"]
[2,6,2,"おおもじ 3もじ２","WET, ZOO, ICE, ANT, BED, FOX, CAR, LIP, JET, SUN, PET, HAT, SEA"]
[2,6,3,"こもじ 3もじ１","cat, use, dog, six, red, bus, jam, fan, egg, key, ham, pig, van"]
[2,6,4,"こもじ 3もじ２","wet, zoo, ice, ant, bed, fox, car, lip, jet, sun, pet, hat, sea"]
[2,12,1,"こもじ 3もじ","rat, sun, bag, ant, map, tea, key, net, cup, dog, toy, ice, pan, use, fan, egg, lip"]
[2,12,2,"こもじ 4もじ","bird, frog, lion, bear, cake, game, quiz, hand, kite, milk, nose, open, tree, boat, gray, desk, rice"]
[null,null,null,null,"2023.03.16 ver."]

{"sheet":"フォニックス","index":5,"n_rows":58,"n_cols":5,"rows_kept":58,"cut":false,"hidden":false,"merged":[[43,4,44,4],[45,4,46,4],[47,4,48,4],[49,4,50,4],[51,4,52,4]]}
["Level","Step","Lesson","テーマ","出題内容"]
[2,4,1,"bar と car","bar, car"]
[2,4,2,"hat と mat","hat, mat"]
[2,4,3,"fan と van","fan, van"]
[2,4,4,"jet と net","jet, net"]
[2,4,5,"dog と fox","dog, fox"]
[2,5,1,"king と wing","king, wing"]
[2,5,2,"game と name","game, name"]
[2,5,3,"sea と tea","sea, tea"]
[2,5,4,"lock と rock","lock, rock"]
[2,5,5,"coat と goat","coat, goat"]
[2,7,1,"b と c","bus, cat"]
[2,7,2,"d と f","door, fan"]
[2,7,3,"g と h","game, hat"]
[2,7,4,"j と k","jam, key"]
[2,7,5,"l と m","lip, map"]
[2,8,1,"n と p","net, pet"]
[2,8,2,"q と r","quiz, ring"]
[2,8,3,"s と t","sea, tea"]
[2,8,4,"v と w","van, wall"]
[2,8,5,"y と z","yo-yo, zero"]
[2,9,1,"さいしょの おとが おなじ たんご１","bat, cat, dog, fish, bar, cake, door, fan"]
[2,9,2,"さいしょの おとが おなじ たんご２","game, hat, jet, king, goat, ham, jam, key"]
[2,9,3,"さいしょの おとが おなじ たんご３","lion, mat, name, pet, lip, map, no, pan"]
[2,9,4,"さいしょの おとが おなじ たんご４","quiz, ring, sea, tea, queen, rat, sing, toy"]
[2,9,5,"さいしょの おとが おなじ たんご５","vet, wing, yo-yo, zoo, van, wood, yes, zero"]
[2,10,1,"さいごの おとが おなじ たんご１","bar, bat, can, jet, dog, car, cat, fan"]
[2,10,2,"さいごの おとが おなじ たんご２","car, cat, fan, net, frog, wing, lock, dog"]
[2,11,1,"さいごの おとが おなじ たんご３","ring, game, sea, lock, coat, star, cat, pan"]
[2,11,2,"さいごの おとが おなじ たんご４","wing, name, tea, rock, fan, pet, vet, coat"]
[2,12,1,"さいしょの おとが おなじ たんご","bat, cat, dog, fish, game, hat, jet, king, lion, mat"]
[2,12,2,"さいしょの おとが おなじ たんご","name, pet, quiz, ring, sea, tea, vet, wing, yo-yo, zoo"]
[2,12,3,"さいしょ／さいごの おとが おなじ たんご","bar, bat, car, cat, ring, game, wing, name, door, fan"]
[3,1,1,"音と文字（b / c）","bus, cat"]
[3,1,2,"音と文字（d / f）","door, fan"]
[3,2,1,"音と文字（g / h）","game, hat"]
[3,2,2,"音と文字（j / k）","jam, key"]
[3,3,1,"音と文字（l / m）","lip, map"]
[3,3,2,"音と文字（n / p）","net, pet"]
[3,4,1,"音と文字（q / r）","quiz, ring"]
[3,4,2,"音と文字（s / t）","sea, tea"]
[3,5,1,"音と文字（v / w）","van, wall"]
[3,5,2,"音と文字（y / z）","yo-yo, zero"]
[3,6,1,"さいしょの おとが おなじ たんご１","bat, cat, dog, fish, bar, cake, door, fan"]
[3,6,2,"さいしょの おとが おなじ たんご２"]
[3,7,1,"さいしょの おとが おなじ たんご１","game, hat, jet, king, goat, ham, jam, key"]
[3,7,2,"さいしょの おとが おなじ たんご２"]
[3,8,1,"さいしょの おとが おなじ たんご１","lion, mat, name, pet, lip, map, no, pan"]
[3,8,2,"さいしょの おとが おなじ たんご２"]
[3,9,1,"さいしょの おとが おなじ たんご１","quiz, ring, sea, tea, queen, rat, sing, toy"]
[3,9,2,"さいしょの おとが おなじ たんご２"]
[3,10,1,"さいしょの おとが おなじ たんご１","vet, wing, yo-yo, zoo, van, wood, yes, zero"]
[3,10,2,"さいしょの おとが おなじ たんご２"]
[3,11,1,"さいごの おとが おなじ たんご１","bar, bat, can, jet, dog, car, cat, fan"]
[3,11,2,"さいごの おとが おなじ たんご２","car, cat, fan, net, frog, wing, lock, dog"]
[3,12,1,"さいごの おとが おなじ たんご１","ring, game, sea, lock, coat, star, cat, pan"]
[3,12,2,"さいごの おとが おなじ たんご２","wing, name, tea, rock, fan, pet, vet, coat"]
[null,null,null,null,"2023.03.16 ver."]